{"text_format":"3","workbook":"xlsx","n_sheets":4,"sheets":["Devis à remplir","Devis final","(aide - calcul de prix)","(aide - exemple de calcul)"],"not_rendered":{"images":1,"macros":1,"defined_names":4,"comments":4},"read":"whole","date_system":"1900"}

{"sheet":"Devis à remplir","index":0,"n_rows":783,"n_cols":7,"rows_kept":783,"merged":[[0,7,0,22],[1,0,1,5],[2,0,2,4],[4,0,4,4],[18,1,18,4],[27,1,27,4],[38,1,38,4],[41,0,41,4],[43,1,43,4],[48,1,48,4],[49,1,49,4],[50,1,50,4],[57,1,57,4],[60,1,60,4],[67,1,67,4],[68,1,68,4],[69,1,69,4],[78,1,78,4],[81,0,81,4],[83,1,83,4],[88,1,88,4],[89,1,89,4],[96,1,96,4],[103,1,103,4],[106,1,106,4],[111,1,111,4],[114,1,114,4],[115,1,115,4],[124,1,124,4],[126,0,126,5],[127,0,127,4],[129,1,129,4],[136,1,136,4],[143,1,143,4],[146,1,146,4],[153,0,153,4],[157,1,157,4],[162,1,162,4],[173,1,173,4],[178,1,178,4],[181,1,181,4],[185,1,185,4],[192,0,192,4],[194,1,194,4],[211,1,211,4],[223,1,223,4],[224,1,224,4],[227,1,227,4],[270,1,270,4],[271,1,271,4],[274,1,274,4],[285,1,285,4],[292,1,292,4],[303,1,303,4],[306,0,306,4],[310,1,310,4],[313,1,313,4],[314,1,314,4],[315,1,315,4],[328,1,328,4],[329,1,329,4],[330,1,330,4],[333,1,333,4],[346,1,346,4],[347,1,347,4],[352,1,352,4],[353,1,353,4],[354,1,354,4],[361,1,361,4],[366,1,366,4],[373,1,373,4],[378,1,378,4],[379,1,379,4],[396,1,396,4],[399,0,399,4],[401,1,401,4],[402,1,402,4],[433,1,433,4],[454,1,454,4],[455,1,455,4],[466,0,466,4],[470,1,470,4],[481,1,481,4],[484,1,484,4],[499,1,499,4],[500,1,500,4],[505,1,505,4],[508,1,508,4],[515,0,515,4],[519,1,519,4],[522,0,522,4],[530,0,530,4],[541,0,541,4],[556,2,556,3]]}
["N°","Désignation","Unité","Quantité","PU HT","Montant HT","Taux TVA"]
[]
["Comment utiliser cet outil ? C'est simple !\n - Dépliez les catégories à compléter en appuyant sur les boutons \"+\" sur le bord gauche de l'écran.\n - Remplissez les cases vertes des lignes qui concernent votre prestation, et détaillez les\n   descriptions si besoin. Attention : vous ne pouvez cliquer que sur les cases à modifier.\n   (Astuce : laissez votre souris sur les cases avec un triangle dans le coin supérieur droit pour voir s'afficher une aide).\n    (Attention : le taux normal de TVA de 20 % s'applique dans la majorité des cas. Pour savoir si certaines prestations\n    bénéficient d'une TVA à taux réduit, vous pouvez vous référer au guide Unep sur la TVA ou contacter le SVP fiscal).\n   (Pour rappel : les prix des prestations de la catégorie \"Prix pour mémoire\" ne sont pas comptabilisés dans le total).\n - Cliquez sur le bouton de mise en page au bas du tableau (ligne 550).\n - Allez dans l'onglet \"Devis final\" pour remplir l'en-tête et les CGV en bas de page (n'oubliez pas de\n   supprimer les aides en vert) et imprimer le devis.\n   (Pour information : appuyer de nouveau sur le bouton de mise en page ne modifie que les lignes de prestations,\n    vos en-têtes et CGV personnalisées ne sont pas supprimées).\nEn cas de problème, vous pouvez retélécharger ce fichier sur le site de l'Unep."]
[]
["Travaux des sols",{"$nulls":4},{"$f":"IF(MAX(F7:F38)<>0,\"A\",0)","v":0}]
[]
[null,"Cartographie des sols en place","FORFAIT ",null,null,{"$f":"E7*D7","v":{"v":0,"d":"0.00 €"}}]
[null,"Étapes : réalisation des observations ; cartographie.\nPrécisions : observations par tarière/fosse ; type de matériel utilisé ().",{"$nulls":3},{"$f":"IF(F7<>0,\"A\",0)","v":0}]
[null,"Analyse de terre","UNITE",null,null,{"$f":"E9*D9","v":{"v":0,"d":"0.00 €"}}]
[null,"Étapes : prélèvement des échantillons de sol ; analyse en laboratoire.\nPrécisions : type d'analyse () ; laboratoire ().",{"$nulls":3},{"$f":"IF(F9<>0,\"A\",0)","v":0}]
[null,"Décapage","mᵌ",null,null,{"$f":"E11*D11","v":{"v":0,"d":"0.00 €"}}]
[null,"Étapes : identification des différentes couches ; décapage puis stockage de la couche supérieure ; décapage puis stockage des couches sous-jacentes.\nPrécisions : nombre de passages () et profondeur des couches () cm ; type de matériel utilisé () ; sur sol sec.",{"$nulls":3},{"$f":"IF(F11<>0,\"A\",0)","v":0}]
[null,"Concassage","m²",null,null,{"$f":"E13*D13","v":{"v":0,"d":"0.00 €"}}]
[null,"Étapes : concassage.\nPrécisions : type de matériel utilisé ().",{"$nulls":3},{"$f":"IF(F13<>0,\"A\",0)","v":0}]
[null,"Criblage","m²",null,null,{"$f":"E15*D15","v":{"v":0,"d":"0.00 €"}}]
[null,"Étapes : criblage ; évacuation/enfouissage des refus de criblage.\nPrécisions : type de matériel utilisé () ; sur sol sec.",{"$nulls":3},{"$f":"IF(F15<>0,\"A\",0)","v":0}]
[null,"Stockage des terres ressources","m²",null,null,{"$f":"E17*D17","v":{"v":0,"d":"0.00 €"}}]
[null,"Étapes : aménagement de la zone de stockage () ; dépôt des terres ressources ; mise en forme des andains ; bachage/ensemencement éventuel.\nPrécisions : type de matériel utilisé () ; type de bâche imperméable () / dosage de l'ensemencement ().",{"$nulls":3},{"$f":"IF(F17<>0,\"A\",0)","v":0}]
["PC","Observation et consignation des conditions de stockage",{"$nulls":3},{"$f":"IF(F17<>0,\"A\",0)","v":0}]
[null,"Protection mécanique des arbres","UNITE",null,null,{"$f":"E20*D20","v":{"v":0,"d":"0.00 €"}}]
[null,"Étapes : fourniture et réalisation de la protection.\nPrécisions : type de protection ().",{"$nulls":3},{"$f":"IF(F20<>0,\"A\",0)","v":0}]
[null,"Remédiation","mᵌ",null,null,{"$f":"E22*D22","v":{"v":0,"d":"0.00 €"}}]
[null,"Étapes : déstockage ; séchage éventuel ; émiettage éventuel ; amendements organiques éventuels.\nPrécisions : type de matériel utilisé () ; type d'amendement éventuel ().",{"$nulls":3},{"$f":"IF(F22<>0,\"A\",0)","v":0}]
[null,"Décompactage du fond de forme","m²",null,null,{"$f":"E24*D24","v":{"v":0,"d":"0.00 €"}}]
[null,"Étapes : réalisation du décompactage.\nPrécisions : type de matériel utilisé () ; épaisseur () cm.",{"$nulls":3},{"$f":"IF(F24<>0,\"A\",0)","v":0}]
[null,"Mise en place des sols reconstitués","mᵌ",null,null,{"$f":"E26*D26","v":{"v":0,"d":"0.00 €"}}]
[null,"Étapes : aménagement éventuel du fond de forme ; mise en place des sols reconstitués.\nPrécisions : type de matériel utilisé () ; sur sol ressuyé et en période sèche.",{"$nulls":3},{"$f":"IF(F26<>0,\"A\",0)","v":0}]
["PC","Réalisation de sondages pour contrôler les épaisseurs en place et estimer la compacité du sol reconstitué",{"$nulls":3},{"$f":"IF(F26<>0,\"A\",0)","v":0}]
[null,"Réalisation de fosses de plantation","mᵌ",null,null,{"$f":"E29*D29","v":{"v":0,"d":"0.00 €"}}]
[null,"Étapes : ouverture de la fosse ; décompactage du fond et des parois ; drainage éventuel ; évacuation des matériaux ou remblaiement.\nPrécisions : type de matériel utilisé () ; volume de fosse () mᵌ ; type de drain éventuel ().",{"$nulls":3},{"$f":"IF(F29<>0,\"A\",0)","v":0}]
[null,"Reconstitution de sol en mélange terre-pierre","mᵌ",null,null,{"$f":"E31*D31","v":{"v":0,"d":"0.00 €"}}]
[null,"Étapes : contrôle de l'humidité ; fourniture et mise en place des différentes couches ; compactage.\nPrécisions : type de matériel utilisé () ; proportion du mélange () et volume () ; sur sol sec et sans plombage à l'eau.",{"$nulls":3},{"$f":"IF(F31<>0,\"A\",0)","v":0}]
[null,"Mise en œuvre de substrats de plantation circulables","mᵌ",null,null,{"$f":"E33*D33","v":{"v":0,"d":"0.00 €"}}]
[null,"Étapes : contrôle de l'humidité ; fourniture et mise en place des différentes couches ; compactage.\nPrécisions : type de matériel utilisé () ; type de substrat () et volume () ; sur sol sec et sans plombage à l'eau.",{"$nulls":3},{"$f":"IF(F33<>0,\"A\",0)","v":0}]
[null,"Mise en œuvre de supports de culture","mᵌ",null,null,{"$f":"E35*D35","v":{"v":0,"d":"0.00 €"}}]
[null,"Étapes : fourniture et mise en place.\nPrécisions : type de matériel utilisé () ; type de support de culture () et volume/épaisseur ().",{"$nulls":3},{"$f":"IF(F35<>0,\"A\",0)","v":0}]
[null,"Mise en place d'une barrière anti-rhizome","ml",null,null,{"$f":"E37*D37","v":{"v":0,"d":"0.00 €"}}]
[null,"Étapes : fourniture et mise en place de la barrière anti-rhizome.\nPrécisions : type de barrière ().",{"$nulls":3},{"$f":"IF(F37<>0,\"A\",0)","v":0}]
["PC","Fournir une fiche de description des observations de terrain, leur localisation sur un plan et les analyses complémentaires\nVérification de l'adéquation entre le plan des sols et le plan de plantation",{"$nulls":3},{"$f":"IF(F5<>0,\"A\",0)","v":0}]
[]
[]
["Travaux de plantation des arbres et arbustes",{"$nulls":4},{"$f":"IF(MAX(F44:F78)<>0,\"A\",0)","v":0}]
[]
[null,"Fournitures des plantes",{"$nulls":3},{"$f":"IF(SUM(F45:F48)<>0,\"A\",0)","v":0}]
[null,"Arbres","UNITE",null,null,{"$f":"E45*D45","v":{"v":0,"d":"0.00 €"}}]
[null,"Précisions ().",{"$nulls":3},{"$f":"IF(F45<>0,\"A\",0)","v":0}]
[null,"Arbustes","UNITE",null,null,{"$f":"E47*D47","v":{"v":0,"d":"0.00 €"}}]
[null,"Précisions ().",{"$nulls":3},{"$f":"IF(F47<>0,\"A\",0)","v":0}]
["PC","Vérification de la quantité et de la qualité des plants lors de leur réception, ainsi que leur état sanitaire",{"$nulls":3},{"$f":"IF(F44<>0,\"A\",0)","v":0}]
[null,"Plantation des arbres et arbustes",{"$nulls":3},{"$f":"IF(SUM(F52:F67)<>0,\"A\",0)","v":0}]
["PC","Contrôle du sol : propreté du sol ; travail du sol ; texture adaptée ; apports éventuels ; mise en forme ; taille des fosses",{"$nulls":3},{"$f":"IF(F50<>0,\"A\",0)","v":0}]
[null,"Apport d'amendements","m²",null,null,{"$f":"E52*D52","v":{"v":0,"d":"0.00 €"}}]
[null,"Étapes : diagnostic ; épandage de l'amendement selon son type.\nPrécisions : type d'amendement () fourni ; dosage de () g par m².",{"$nulls":3},{"$f":"IF(F52<>0,\"A\",0)","v":0}]
[null,"Apport d'engrais","m²",null,null,{"$f":"E54*D54","v":{"v":0,"d":"0.00 €"}}]
[null,"Étapes : diagnostic ; épandage d'engrais selon son type.\nPrécisions : type d'engrais () fourni ; dosage de () g par m².",{"$nulls":3},{"$f":"IF(F54<>0,\"A\",0)","v":0}]
[null,"Mise en œuvre des arbres","UNITE",null,null,{"$f":"E56*D56","v":{"v":0,"d":"0.00 €"}}]
[null,"Étapes : ouverture du trou de plantation, taille éventuelle, installation des arbres, remise en place et tassement léger du support de plantation, plombage, réalisation de la cuvette d’arrosage, nettoyage des abords.",{"$nulls":3},{"$f":"IF(F56<>0,\"A\",0)","v":0}]
["PC","Concordance avec le plan de projet\nVérification de la profondeur d'enracinement, de l'état général du sol, de la bonne implantation, de la stabilité de l'arbre\nConstat de plantation et contractualisation de la garantie de reprise",{"$nulls":3},{"$f":"IF(F56<>0,\"A\",0)","v":0}]
[null,"Mise en œuvre des arbustes","UNITE",null,null,{"$f":"E59*D59","v":{"v":0,"d":"0.00 €"}}]
[null,"Étapes : ouverture du trou de plantation, taille éventuelle, installation des arbustes, remise en place et tassement léger du support de plantation, plombage, réalisation de la cuvette d’arrosage, nettoyage des abords.",{"$nulls":3},{"$f":"IF(F59<>0,\"A\",0)","v":0}]
["PC","Concordance avec le plan de projet\nVérification de la profondeur d'enracinement, de l'état général du sol, de la bonne implantation, de la stabilité de l'arbuste\nConstat de plantation et contractualisation de la garantie de reprise",{"$nulls":3},{"$f":"IF(F59<>0,\"A\",0)","v":0}]
[null,"Drain des fosses de plantation","UNITE",null,null,{"$f":"E62*D62","v":{"v":0,"d":"0.00 €"}}]
[null,"Étapes : fourniture et mise en place du drain.\nPrécisions : drain agricole de diamètre () et longueur () cm ; bouchon inclus.",{"$nulls":3},{"$f":"IF(F62<>0,\"A\",0)","v":0}]
[null,"Sondes tensio-métriques","FORFAIT",null,null,{"$f":"E64*D64","v":{"v":0,"d":"0.00 €"}}]
[null,"Étapes : fourniture et mise en place de sondes tensio-métriques.\nPrécisions : type de sonde () ; nombre () ; indiquer leur localisation, par arbre.",{"$nulls":3},{"$f":"IF(F64<>0,\"A\",0)","v":0}]
[null,"Paillage","m²",null,null,{"$f":"E66*D66","v":{"v":0,"d":"0.00 €"}}]
[null,"Étapes : fourniture et mise en place du paillis.\nPrécisions : paillis de type () ; sur une épaisseur de () cm.",{"$nulls":3},{"$f":"IF(F66<>0,\"A\",0)","v":0}]
["PC","Vérification de l'épaisseur du paillis et de son adaptation au projet",{"$nulls":3},{"$f":"IF(F66<>0,\"A\",0)","v":0}]
[null,"IMPORTANT : un entretien doit être proposé après la plantation pour garantir le bon développement des végétaux\n(cf. outil d'aide à la réalsiation de devis sur l'entretien)",{"$nulls":3},{"$f":"IF(F50<>0,\"A\",0)","v":0}]
[null,"Tuteurs et systèmes de protection",{"$nulls":3},{"$f":"IF(SUM(F71:F78)<>0,\"A\",0)","v":0}]
[null,"Tuteurage","UNITE",null,null,{"$f":"E71*D71","v":{"v":0,"d":"0.00 €"}}]
[null,"Étapes : fourniture et mise en place des tuteurs.\nPrécisions : tuteur de type () en matériaux () ; diamètre () et longueur () ; type d'attaches ().",{"$nulls":3},{"$f":"IF(F71<>0,\"A\",0)","v":0}]
[null,"Haubanage","UNITE",null,null,{"$f":"E73*D73","v":{"v":0,"d":"0.00 €"}}]
[null,"Étapes : fourniture et mise en place des haubans.\nPrécisions : type et matériaux des câbles, ancrages et attaches () ; diamètre () et longueur () des câbles ; nombre de haubans ().",{"$nulls":3},{"$f":"IF(F73<>0,\"A\",0)","v":0}]
[null,"Ancrage de motte","UNITE",null,null,{"$f":"E75*D75","v":{"v":0,"d":"0.00 €"}}]
[null,"Étapes : fourniture et mise en place de l'ancrage de motte.\nPrécisions : ancrage de type () ; nombre de points d'ancrage () ; section de l'ancrage ().",{"$nulls":3},{"$f":"IF(F75<>0,\"A\",0)","v":0}]
[null,"Protection du tronc","UNITE",null,null,{"$f":"E77*D77","v":{"v":0,"d":"0.00 €"}}]
[null,"Étapes : diagnostic ; mise en place de la protection du tronc ; suivi et entretien du dispositif de protection.\nPrécisions : type de protection ().",{"$nulls":3},{"$f":"IF(F77<>0,\"A\",0)","v":0}]
["PC","Vérification de la solidité des ancrages des tuteurs/haubans/ancrages de mottes",{"$nulls":3},{"$f":"IF(SUM(F71:F76)<>0,\"A\",0)","v":0}]
[]
[]
["Travaux de plantation des massifs",{"$nulls":4},{"$f":"IF(MAX(F84:F124)<>0,\"A\",0)","v":0}]
[]
[null,"Fournitures des végétaux",{"$nulls":3},{"$f":"IF(SUM(F85:F88)<>0,\"A\",0)","v":0}]
[null,"Arbres et arbustes","UNITE",null,null,{"$f":"E85*D85","v":{"v":0,"d":"0.00 €"}}]
[null,"Précisions ().",{"$nulls":3},{"$f":"IF(F85<>0,\"A\",0)","v":0}]
[null,"Plantes","UNITE",null,null,{"$f":"E87*D87","v":{"v":0,"d":"0.00 €"}}]
[null,"Précisions ().",{"$nulls":3},{"$f":"IF(F87<>0,\"A\",0)","v":0}]
["PC","Vérification de la quantité et de la qualité des plants lors de leur réception",{"$nulls":3},{"$f":"IF(F84<>0,\"A\",0)","v":0}]
[null,"Plantation des végétaux",{"$nulls":3},{"$f":"IF(SUM(F91:F114)<>0,\"A\",0)","v":0}]
[null,"Bêchage du sol","m²",null,null,{"$f":"E91*D91","v":{"v":0,"d":"0.00 €"}}]
[null,"Étapes : bêchage du sol ; nivellement.\nPrécisions : sur 10 à 30 cm ; à éviter sur sol battant.",{"$nulls":3},{"$f":"IF(F91<>0,\"A\",0)","v":0}]
[null,"Désherbage manuel","m²",null,null,{"$f":"E93*D93","v":{"v":0,"d":"0.00 €"}}]
[null,"Étapes : désherbage manuel ; évacuation des plantes adventices.",{"$nulls":3},{"$f":"IF(F93<>0,\"A\",0)","v":0}]
[null,"Désherbage chimique","m²",null,null,{"$f":"E95*D95","v":{"v":0,"d":"0.00 €"}}]
[null,"Étapes : désherbage chimique.\nPrécisions : type de matériel utilisé () ; type de produit utilisé ().",{"$nulls":3},{"$f":"IF(F95<>0,\"A\",0)","v":0}]
["PC","Utilisation des produits selon les préconisations des fournisseurs (archivées)\nApplication de produits par un personnel formé",{"$nulls":3},{"$f":"IF(F95<>0,\"A\",0)","v":0}]
[null,"Apport d'amendements","m²",null,null,{"$f":"E98*D98","v":{"v":0,"d":"0.00 €"}}]
[null,"Étapes : diagnostic ; épandage de l'amendement selon son type.\nPrécisions : type d'amendement () fourni ; dosage de () g par m².",{"$nulls":3},{"$f":"IF(F98<>0,\"A\",0)","v":0}]
[null,"Apport d'engrais","m²",null,null,{"$f":"E100*D100","v":{"v":0,"d":"0.00 €"}}]
[null,"Étapes : diagnostic ; épandage d'engrais selon son type.\nPrécisions : type d'engrais () fourni ; dosage de () g par m².",{"$nulls":3},{"$f":"IF(F100<>0,\"A\",0)","v":0}]
[null,"Mise en œuvre des arbustes","UNITE",null,null,{"$f":"E102*D102","v":{"v":0,"d":"0.00 €"}}]
[null,"Étapes : ouverture du trou de plantation, taille éventuelle, installation des arbustes, remise en place et tassement léger du support de plantation, plombage, réalisation de la cuvette d’arrosage, nettoyage des abords.",{"$nulls":3},{"$f":"IF(F102<>0,\"A\",0)","v":0}]
["PC","Concordance avec le plan de projet\nVérification de la profondeur d'enracinement, de l'état général du sol, de la bonne implantation, de la stabilité de l'arbuste\nVérification de la densité de plantation\nConstat de plantation et contractualisation de la garantie de reprise",{"$nulls":3},{"$f":"IF(F102<>0,\"A\",0)","v":0}]
[null,"Plantation des plantes vivaces et couvre sol","UNITE",null,null,{"$f":"E105*D105","v":{"v":0,"d":"0.00 €"}}]
[null,"Étapes : ouverture du trou de plantation au transplantoir, mise en place, arrosage, nettoyage des abords, nivellement au rateau.",{"$nulls":3},{"$f":"IF(F105<>0,\"A\",0)","v":0}]
["PC","Concordance avec le plan de projet\nPrise en compte des spécificités relatives aux massifs composés (concurrence pour l'eau, zones ombragées)\nVérification de la bonne liaison terre-système racinaire\nConstat de plantation et contractualisation de la garantie de reprise",{"$nulls":3},{"$f":"IF(F105<>0,\"A\",0)","v":0}]
[null,"Sondes tensio-métriques","FORFAIT",null,null,{"$f":"E108*D108","v":{"v":0,"d":"0.00 €"}}]
[null,"Étapes : fourniture et mise en place de sondes tensio-métriques.\nPrécisions : type de sonde () ; nombre () ; indiquer leur localisation, par arbre.",{"$nulls":3},{"$f":"IF(F108<>0,\"A\",0)","v":0}]
[null,"Paillage","m²",null,null,{"$f":"E110*D110","v":{"v":0,"d":"0.00 €"}}]
[null,"Étapes : fourniture et mise en place du paillis.\nPrécisions : paillis de type () ; sur une épaisseur de () cm.",{"$nulls":3},{"$f":"IF(F110<>0,\"A\",0)","v":0}]
["PC","Vérification de l'épaisseur du paillis et de son adaptation au projet",{"$nulls":3},{"$f":"IF(F110<>0,\"A\",0)","v":0}]
[null,"Délimitation des massifs","ml",null,null,{"$f":"E113*D113","v":{"v":0,"d":"0.00 €"}}]
[null,"Étapes : fourniture et mise en place de bordures.\nPrécisions : bordure de type ().",{"$nulls":3},{"$f":"IF(F113<>0,\"A\",0)","v":0}]
[null,"IMPORTANT : un entretien doit être proposé après la plantation pour garantir le bon développement des végétaux\n(cf. outil d'aide à la réalsiation de devis sur l'entretien)",{"$nulls":3},{"$f":"IF(F90<>0,\"A\",0)","v":0}]
[null,"Tuteurs et supports",{"$nulls":3},{"$f":"IF(SUM(F117:F124)<>0,\"A\",0)","v":0}]
[null,"Tuteurage","UNITE",null,null,{"$f":"E117*D117","v":{"v":0,"d":"0.00 €"}}]
[null,"Étapes : fourniture et mise en place des tuteurs.\nPrécisions : tuteur de type () en matériaux () ; diamètre () et longueur () ; type d'attaches ().",{"$nulls":3},{"$f":"IF(F117<>0,\"A\",0)","v":0}]
[null,"Haubanage","UNITE",null,null,{"$f":"E119*D119","v":{"v":0,"d":"0.00 €"}}]
[null,"Étapes : fourniture et mise en place des haubans.\nPrécisions : type et matériaux des câbles, ancrages et attaches () ; diamètre () et longueur () des câbles ; nombre de haubans ().",{"$nulls":3},{"$f":"IF(F119<>0,\"A\",0)","v":0}]
[null,"Ancrage de motte","UNITE",null,null,{"$f":"E121*D121","v":{"v":0,"d":"0.00 €"}}]
[null,"Étapes : fourniture et mise en place de l'ancrage de motte.\nPrécisions : ancrage de type () ; nombre de points d'ancrage () ; section de l'ancrage ().",{"$nulls":3},{"$f":"IF(F121<>0,\"A\",0)","v":0}]
[null,"Supports de plantes grimpantes","UNITE",null,null,{"$f":"E123*D123","v":{"v":0,"d":"0.00 €"}}]
[null,"Étapes : fourniture et mise en place des supports.\nPrécisions : supports de type () en matériaux () ; dimentions () ; type d'attaches ().",{"$nulls":3},{"$f":"IF(F123<>0,\"A\",0)","v":0}]
["PC","Vérification de la solidité des ancrages des tuteurs/haubans/ancrages de mottes",{"$nulls":3},{"$f":"IF(SUM(F117:F122)<>0,\"A\",0)","v":0}]
[]
[]
["Travaux de mise en œuvre des gazons",{"$nulls":4},{"$f":"IF(MAX(F131:F151)<>0,\"A\",0)","v":0}]
[]
["PC","Évaluation de la qualité des sols et de la planéité\nVérification de la quantité et de la qualité des végétaux lors de leur réception, ainsi que leur état sanitaire",{"$nulls":3},{"$f":"IF(F128<>0,\"A\",0)","v":0}]
[null,"Préparation du sol","m²",null,null,{"$f":"E131*D131","v":{"v":0,"d":"0.00 €"}}]
[null,"Étapes : réalisation d'un décompactage ; émiettage des mottes ; nivellement.\nPrécisions : type de matériel utilisé () ; épaisseur du décompactage () cm.",{"$nulls":3},{"$f":"IF(F131<>0,\"A\",0)","v":0}]
[null,"Désherbage manuel","m²",null,null,{"$f":"E133*D133","v":{"v":0,"d":"0.00 €"}}]
[null,"Étapes : désherbage manuel ; évacuation des plantes adventices.",{"$nulls":3},{"$f":"IF(F133<>0,\"A\",0)","v":0}]
[null,"Désherbage chimique","m²",null,null,{"$f":"E135*D135","v":{"v":0,"d":"0.00 €"}}]
[null,"Étapes : désherbage chimique.\nPrécisions : type de matériel utilisé () ; type de produit utilisé ().",{"$nulls":3},{"$f":"IF(F135<>0,\"A\",0)","v":0}]
["PC","Utilisation des produits selon les préconisations des fournisseurs (archivées)\nApplication de produits par un personnel formé",{"$nulls":3},{"$f":"IF(F135<>0,\"A\",0)","v":0}]
[null,"Apport d'amendements","m²",null,null,{"$f":"E138*D138","v":{"v":0,"d":"0.00 €"}}]
[null,"Étapes : diagnostic ; épandage de l'amendement selon son type.\nPrécisions : type d'amendement () fourni ; dosage de () g par m².",{"$nulls":3},{"$f":"IF(F138<>0,\"A\",0)","v":0}]
[null,"Apport d'engrais","m²",null,null,{"$f":"E140*D140","v":{"v":0,"d":"0.00 €"}}]
[null,"Étapes : diagnostic ; épandage d'engrais selon son type.\nPrécisions : type d'engrais () fourni ; dosage de () g par m².",{"$nulls":3},{"$f":"IF(F140<>0,\"A\",0)","v":0}]
[null,"Engazonnement par semis","m²",null,null,{"$f":"E142*D142","v":{"v":0,"d":"0.00 €"}}]
[null,"Étapes : semis manuel/mécanique en deux passages perpendicaulaires ; réalisation d'un filet sur les contours ; enfouissement ; roulage ; arrosage.\nPrécisions : dose de semis () g/m² ; matériel utilisé ().",{"$nulls":3},{"$f":"IF(F142<>0,\"A\",0)","v":0}]
["PC","Vérification de : l'homogénéité de l'installation du gazon ; la hauteur du sol en bordure de pelouse ; l'absence de carence",{"$nulls":3},{"$f":"IF(F142<>0,\"A\",0)","v":0}]
[null,"Engazonnement par placage","m²",null,null,{"$f":"E145*D145","v":{"v":0,"d":"0.00 €"}}]
[null,"Étapes : pose manuelle/mécanique des rouleaux ; ajustement des bords ; roulage ; arrosage.\nPrécisions : matériel utilisé () ; sur sol stable, plan et humide.",{"$nulls":3},{"$f":"IF(F145<>0,\"A\",0)","v":0}]
["PC","Vérification de : l'absence de desséchement/rétractation ; l'absence de joints apparents ; le bon enracinement des plaques",{"$nulls":3},{"$f":"IF(F145<>0,\"A\",0)","v":0}]
[null,"Engazonnement par bouturage","m²",null,null,{"$f":"E148*D148","v":{"v":0,"d":"0.00 €"}}]
[null,"Étapes : plantation de mottes/boutures en vrac ; roulage ; arrosage.\nPrécisions : type de gazon () ; sur sol stable et plan.",{"$nulls":3},{"$f":"IF(F148<>0,\"A\",0)","v":0}]
[null,"Semis de regarnissage","m²",null,null,{"$f":"E150*D150","v":{"v":0,"d":"0.00 €"}}]
[null,"Étapes : scarification superficielle manuelle ; sursemis ; roulage ; arrosage.\nPrécisions : après la 1re tonte ; dose de semis () g/m² ; matériel utilisé ().",{"$nulls":3},{"$f":"IF(F150<>0,\"A\",0)","v":0}]
[]
[]
["Travaux de mise en œuvre des systèmes d'arrosage",{"$nulls":4},{"$f":"IF(MAX(F156:F190)<>0,\"A\",0)","v":0}]
[]
[null,"Implantation et piquetage","FORFAIT ",null,null,{"$f":"E156*D156","v":{"v":0,"d":"0.00 €"}}]
[null,"Étapes : piquetage ; matérialisation des tranchées ; établissement des plans d'exécution définitifs.",{"$nulls":3},{"$f":"IF(F156<>0,\"A\",0)","v":0}]
["PC","Vérification de la correspondance au plan d'exécution",{"$nulls":3},{"$f":"IF(F156<>0,\"A\",0)","v":0}]
[null,"Branchement sur la source d'eau","UNITE",null,null,{"$f":"E159*D159","v":{"v":0,"d":"0.00 €"}}]
[null,"Étapes : fourniture et pose d'une vanne de sectionnement et des éléments de branchement ; raccordements.\nPrécisions : nombre () et type () pour chaque élément ; raccordements de type ().",{"$nulls":3},{"$f":"IF(F159<>0,\"A\",0)","v":0}]
[null,"Ouverture de tranchées","ml / mᵌ",null,null,{"$f":"E161*D161","v":{"v":0,"d":"0.00 €"}}]
[null,"Étapes : ouverture de tranchées manuelle/mécanique ; gestion des déblais ; fourniture et mise en place du lit de pose.\nPrécisions : matériel utilisé () ; largeur () et profondeur () de la tranchée ; lit de pose de 10 cm en terre fine compactée/sable.",{"$nulls":3},{"$f":"IF(F161<>0,\"A\",0)","v":0}]
["PC","Contrôle de la bonne profondeur des tranchées",{"$nulls":3},{"$f":"IF(F161<>0,\"A\",0)","v":0}]
[null,"Fourreau","ml",null,null,{"$f":"E164*D164","v":{"v":0,"d":"0.00 €"}}]
[null,"Étapes : fourniture et pose d'un fourreau en tranchée ouverte et raccordement.\nPrécisions : type de fourreau () et diamètre ().",{"$nulls":3},{"$f":"IF(F164<>0,\"A\",0)","v":0}]
[null,"Pose des conduites/canalisations","ml",null,null,{"$f":"E166*D166","v":{"v":0,"d":"0.00 €"}}]
[null,"Étapes : fourniture et pose des conduites en tranchées ouverte et raccordements.\nPrécisions : conduites en polyéthylène/PVC ; diamètre des tuyaux () mm pour une pression de service de () bars ; raccordements de type ().",{"$nulls":3},{"$f":"IF(F166<>0,\"A\",0)","v":0}]
[null,"Pose des éléments de fontainerie et de robinetterie","UNITE",null,null,{"$f":"E168*D168","v":{"v":0,"d":"0.00 €"}}]
[null,"Étapes : fourniture et pose des éléments et raccordements.\nPrécisions : nombre () et type () d'éléments ; raccordements de type ().",{"$nulls":3},{"$f":"IF(F168<>0,\"A\",0)","v":0}]
[null,"Fermeture des tranchées/fouilles","ml / mᵌ",null,null,{"$f":"E170*D170","v":{"v":0,"d":"0.00 €"}}]
[null,"Étapes : fourniture et mise en place d'un enrobage adapté des tuyaux jusqu'à 15 cm au-dessus de la génératrice supérieure ; fourniture et pose d'un grillage avertisseur ; remblaiement et compactage par couche de 20 cm d'épaisseur.\nPrécisions : type de remblai d'enrobage () ; dimension () et couleur () du filet avertisseur ; type de remblai extrait/d'apport ().",{"$nulls":3},{"$f":"IF(F170<>0,\"A\",0)","v":0}]
[null,"Pose des électrovannes","UNITE",null,null,{"$f":"E172*D172","v":{"v":0,"d":"0.00 €"}}]
[null,"Étapes : purge des réseaux primaires ; fourniture et pose d'électrovannes, avec raccords unions démontables et vanne d'arrêt à purge ; filtre/régulateur de pression/nourrice ; raccordements.\nPrécisions : nombre () et type () pour chaque élément ; raccordements de type ().",{"$nulls":3},{"$f":"IF(F172<>0,\"A\",0)","v":0}]
["PC","Vérifier le bon fonctionnement des électrovannes\nVérifier la conformité des connexions électriques étanches et l'étanchéité des pièces de montage\nS'assurer de ne pas dépasser le nombre maximum d'électrovannes par regard",{"$nulls":3},{"$f":"IF(F172<>0,\"A\",0)","v":0}]
[null,"Pose des regards de visite","UNITE",null,null,{"$f":"E175*D175","v":{"v":0,"d":"0.00 €"}}]
[null,"Étapes : fourniture et pose du regard ; mise en place d'un géotextile ; pose d'un lit de gravier de 5 cm au fond du regard ; rebouchage par couches successives.\nPrécisions : regard de visite de type () et dimensions () ; raccordements de type () ; gravier de type ().",{"$nulls":3},{"$f":"IF(F175<>0,\"A\",0)","v":0}]
[null,"Pose des arroseurs","UNITE",null,null,{"$f":"E177*D177","v":{"v":0,"d":"0.00 €"}}]
[null,"Étapes : purge des réseaux secondaires ; fourniture et pose des arroseurs ; montage déporté/articulé ; réglage.\nPrécisions : arroseur de type ().",{"$nulls":3},{"$f":"IF(F177<>0,\"A\",0)","v":0}]
["PC","Vérifier : la mise à niveau de l'arroseur en fonctionnement et qu'il ne dépasse pas le niveau du sol fini\nContrôler l'homogénéité de l'arrosage, la bonne répartition des arroseurs et leur pression réelle",{"$nulls":3},{"$f":"IF(F177<>0,\"A\",0)","v":0}]
[null,"Pose des systèmes de goutte-à-goutte","ml/m²",null,null,{"$f":"E180*D180","v":{"v":0,"d":"0.00 €"}}]
[null,"Étapes : fourniture et pose de goutte-à-goutte () en surface/enfouis ; raccordements ; installation de crampons de sol.\nPrécisions : raccordements de type () ; matériel utilisé ().",{"$nulls":3},{"$f":"IF(F180<>0,\"A\",0)","v":0}]
["PC","Vérifier : la conformité du débit mesuré au débit annoncé ; l'absence d'écart de débit supérieur à 10 % entre deux goutteurs\nContrôler l'espacement entre les lignes et les goutteurs",{"$nulls":3},{"$f":"IF(F180<>0,\"A\",0)","v":0}]
[null,"Mise en œuvre des matériels électriques",{"$nulls":3},{"$f":"IF(SUM(F184:F185)<>0,\"A\",0)","v":0}]
[null,"Étapes : fourniture et pose de câbles d'alimentation ; connexions.\nPrécisions : type de câbles () ; nombre de brins et section ().","ml",null,null,{"$f":"E184*D184","v":{"v":0,"d":"0.00 €"}}]
[null,"Étapes : fourniture et pose d'un programmateur ; raccordement au réseau basse tension protégé ; programmation.\nPrécisions : programmateur de type () ; type de câble ().","UNITE",null,null,{"$f":"E185*D185","v":{"v":0,"d":"0.00 €"}}]
["PC","Vérification de l'installation électrique et du programmateur\nVérification de l'ouverture/fermeture des électrovannes à partir du programmateur",{"$nulls":3},{"$f":"IF(F183<>0,\"A\",0)","v":0}]
[null,"Mise en œuvre d'appareils d'aide à la gestion",{"$nulls":3},{"$f":"IF(SUM(F188:F190)<>0,\"A\",0)","v":0}]
[null,"Étapes : fourniture et pose d'un pluviomètre ; raccordement au programmateur.\nPrécision : pluviomètre de type () ; câbles de type ().","UNITE",null,null,{"$f":"E188*D188","v":{"v":0,"d":"0.00 €"}}]
[null,"Étapes : fourniture et pose d'un sonde d'humidité ; raccordement au programmateur ; réglages.\nPrécision : sonde de type () ; câbles de type ().","UNITE",null,null,{"$f":"E189*D189","v":{"v":0,"d":"0.00 €"}}]
[null,"Étapes : fourniture et pose d'une station météo ; raccordement au programmateur ; réglages.\nPrécision : station de type () ; câbles de type ().","UNITE",null,null,{"$f":"E190*D190","v":{"v":0,"d":"0.00 €"}}]
[]
[]
["Travaux de terrassements des aménagements paysagers",{"$nulls":4},{"$f":"IF(MAX(F195:F303)<>0,\"A\",0)","v":0}]
[]
[null,"Préparation du chantier",{"$nulls":3},{"$f":"IF(SUM(F196:F223)<>0,\"A\",0)","v":0}]
[null,"Cartographie des sols en place","FORFAIT ",null,null,{"$f":"E196*D196","v":{"v":0,"d":"0.00 €"}}]
[null,"Étapes : réalisation des observations ; cartographie.\nPrécisions : observations par tarière/fosse ; type de matériel utilisé ().",{"$nulls":3},{"$f":"IF(F196<>0,\"A\",0)","v":0}]
[null,"Caractérisation des sols en place","UNITE",null,null,{"$f":"E198*D198","v":{"v":0,"d":"0.00 €"}}]
[null,"Étapes : analyse par bureau d'étude.\nPrécisions : types de caractéristiques analysés () ; laboratoire ().",{"$nulls":3},{"$f":"IF(F198<>0,\"A\",0)","v":0}]
[null,"Traitement des terres polluées","Tonne",null,null,{"$f":"E200*D200","v":{"v":0,"d":"0.00 €"}}]
[null,"Étapes : évacuation des terres polluées comme déchets dangereux ; traitement en décharge agréée (raison sociale, adresse et type d'installation).\nPrécisions : matériel utilisé () ; benne de volume ().",{"$nulls":3},{"$f":"IF(F200<>0,\"A\",0)","v":0}]
[null,"Panneau d'affichage de chantier","UNITE",null,null,{"$f":"E202*D202","v":{"v":0,"d":"0.00 €"}}]
[null,"Étapes : fourniture et pose du panneau.\nPrécisions : dimensions du panneau () cm.",{"$nulls":3},{"$f":"IF(F202<>0,\"A\",0)","v":0}]
[null,"Signalisation temporaire - panneaux","ml/J/unit",null,null,{"$f":"E204*D204","v":{"v":0,"d":"0.00 €"}}]
[null,"Étapes : fourniture et mise en place de panneaux ; dépose.\nPrécisions : type de panneaux () et nombre ().",{"$nulls":3},{"$f":"IF(F204<>0,\"A\",0)","v":0}]
[null,"Signalisation temporaire - séparateurs","ml/J/unit",null,null,{"$f":"E206*D206","v":{"v":0,"d":"0.00 €"}}]
[null,"Étapes : fourniture et mise en place d'éléments séparateurs ; dépose.\nPrécisions : type d'éléments () et nombre ().",{"$nulls":3},{"$f":"IF(F206<>0,\"A\",0)","v":0}]
[null,"Clôture provisoire","ml/J",null,null,{"$f":"E208*D208","v":{"v":0,"d":"0.00 €"}}]
[null,"Étapes : fourniture et mise en place des constituants de clôture ; dépose.\nPrécisions : clôture de type () et de dimensions () m.",{"$nulls":3},{"$f":"IF(F208<>0,\"A\",0)","v":0}]
[null,"Signalisation routière temporaire","JOURNEE",null,null,{"$f":"E210*D210","v":{"v":0,"d":"0.00 €"}}]
[null,"Étapes : fourniture et mise en place d'un dispositif de signalisation temporaire manuel/automatique.\nPrécisions : dispositif de type ().",{"$nulls":3},{"$f":"IF(F210<>0,\"A\",0)","v":0}]
["PC","Contrôle du respect des normes de sécurité",{"$nulls":3},{"$f":"IF(F210<>0,\"A\",0)","v":0}]
[null,"Visite préalable","FORFAIT ",null,null,{"$f":"E213*D213","v":{"v":0,"d":"0.00 €"}}]
[null,"Étapes : visite préalabe ; état des lieux ; plan d'installation.",{"$nulls":3},{"$f":"IF(F213<>0,\"A\",0)","v":0}]
[null,"Sondage","1/2 journée",null,null,{"$f":"E215*D215","v":{"v":0,"d":"0.00 €"}}]
[null,"Étapes : mise à disposition du matériel , sondage.\nPrécision : matériel utilisé () ; encadrement de l'équipe non compris.",{"$nulls":3},{"$f":"IF(F215<>0,\"A\",0)","v":0}]
[null,"Voiries provisoires et accès","m²",null,null,{"$f":"E217*D217","v":{"v":0,"d":"0.00 €"}}]
[null,"Étapes : décapage ; mise en œuvre d'une forme drainante ; mise en œuvre d'une couche de forme.\nPrécisions : type de matériaux () et épaisseur () ; stockage des matériaux décapés compris.",{"$nulls":3},{"$f":"IF(F217<>0,\"A\",0)","v":0}]
[null,"Installation de chantier\nCe prix rémunère les prestations suivantes : \ny compris toutes mises en conformité au PGCSPS","FORFAIT ",null,null,{"$f":"E219*D219","v":{"v":0,"d":"0.00 €"}}]
[null,"Raccordements provisoires (réalisation et frais)\nPrécisions : raccordements de type ().",{"$nulls":3},{"$f":"IF(F219<>0,\"A\",0)","v":0}]
[null,"Mise à disposition, mise en place et entretien des installations de chantier (hygiène, sécurité, bureau)\nPrécisions :  type d'installations ().",{"$nulls":3},{"$f":"IF(F219<>0,\"A\",0)","v":0}]
[null,"Frais de gardiennage",{"$nulls":3},{"$f":"IF(F219<>0,\"A\",0)","v":0}]
[null,"Remise en état et nettoyage du site.",{"$nulls":3},{"$f":"IF(F219<>0,\"A\",0)","v":0}]
["PC","Contrôle des installations électriques\nVérification du système de canalisation\nRespect du PGCSPS",{"$nulls":3},{"$f":"IF(F219<>0,\"A\",0)","v":0}]
[null,"Travaux préliminaires",{"$nulls":3},{"$f":"IF(SUM(F226:F270)<>0,\"A\",0)","v":0}]
[null,"Implantation et piquetage","FORFAIT ",null,null,{"$f":"E226*D226","v":{"v":0,"d":"0.00 €"}}]
[null,"Étapes : piquetage ; matérialisation des tranchées ; établissement des plans d'exécution définitifs.",{"$nulls":3},{"$f":"IF(F226<>0,\"A\",0)","v":0}]
["PC","Vérification de la correspondance au plan d'exécution",{"$nulls":3},{"$f":"IF(F226<>0,\"A\",0)","v":0}]
[null,"Déconstruction d'ouvrages en élévation","mᵌ",null,null,{"$f":"E229*D229","v":{"v":0,"d":"0.00 €"}}]
[null,"Étapes : démolition des ouvrages et de leurs fondations ; réutilisation des matériaux/évacuation en décharge agréée (raison sociale, adresse et type d'installation) ; nettoyage de la surface.",{"$nulls":3},{"$f":"IF(F229<>0,\"A\",0)","v":0}]
[null,"Déconstruction d'ouvrages en sous-sol","mᵌ",null,null,{"$f":"E231*D231","v":{"v":0,"d":"0.00 €"}}]
[null,"Étapes : démolition des ouvrages, réutilisation des matériaux/évacuation en décharge agréée (raison sociale, adresse et type d'installation) ; reprofilage éventuel ; nettoyage de la surface.",{"$nulls":3},{"$f":"IF(F231<>0,\"A\",0)","v":0}]
[null,"Déconstruction de revêtement","m²",null,null,{"$f":"E233*D233","v":{"v":0,"d":"0.00 €"}}]
[null,"Étapes : démolition ; évacuation en décharge (raison sociale, adresse et type d'installation) ; reprofilage éventuel ; nettoyage.\nPrécisions : démolition de la structue et des couches stabilisantes.",{"$nulls":3},{"$f":"IF(F233<>0,\"A\",0)","v":0}]
[null,"Découpe de revêtement","ml",null,null,{"$f":"E235*D235","v":{"v":0,"d":"0.00 €"}}]
[null,"Étapes : traçage ; découpe mécanique du revêtement ; nettoyage.",{"$nulls":3},{"$f":"IF(F235<>0,\"A\",0)","v":0}]
[null,"Déconstruction de bordures","ml",null,null,{"$f":"E237*D237","v":{"v":0,"d":"0.00 €"}}]
[null,"Étapes : dépose ; stockage/évacuation en décharge (raison sociale, adresse et type d'installation) ; reprofilage éventuel ; nettoyage.",{"$nulls":3},{"$f":"IF(F237<>0,\"A\",0)","v":0}]
[null,"Déconstruction de regards","UNITE",null,null,{"$f":"E239*D239","v":{"v":0,"d":"0.00 €"}}]
[null,"Étapes : démolition ; évacuation en décharge (raison sociale, adresse et type d'installation) ; reprofilage éventuel ; nettoyage de la surface.",{"$nulls":3},{"$f":"IF(F239<>0,\"A\",0)","v":0}]
[null,"Déconstruction d'équipements","UNITE",null,null,{"$f":"E241*D241","v":{"v":0,"d":"0.00 €"}}]
[null,"Étapes : dépose et stockage.\nPrécisions : équipement de type ().",{"$nulls":3},{"$f":"IF(F241<>0,\"A\",0)","v":0}]
[null,"Débroussaillage manuel","m²",null,null,{"$f":"E243*D243","v":{"v":0,"d":"0.00 €"}}]
[null,"Étapes : débroussaillage manuel ; évacuation des déchets organiques et végétaux.\nPrécisions : matériel utilisé ().",{"$nulls":3},{"$f":"IF(F243<>0,\"A\",0)","v":0}]
[null,"Débroussaillage mécanique","m²",null,null,{"$f":"E245*D245","v":{"v":0,"d":"0.00 €"}}]
[null,"Étapes : débroussaillage mécanique ; évacuation des plantes adventices.\nPrécisions : type de matériel utilisé () ; pas de mélange des sols.",{"$nulls":3},{"$f":"IF(F245<>0,\"A\",0)","v":0}]
[null,"Débroussaillage thermique - flamme","m²",null,null,{"$f":"E247*D247","v":{"v":0,"d":"0.00 €"}}]
[null,"Étapes : débroussaillage thermique (gaz).\nPrécisions : type de matériel utilisé ().",{"$nulls":3},{"$f":"IF(F247<>0,\"A\",0)","v":0}]
[null,"Débroussaillage thermique - eau chaude, vapeur","m²",null,null,{"$f":"E249*D249","v":{"v":0,"d":"0.00 €"}}]
[null,"Étapes : débroussaillage thermique.\nPrécisions : type de matériel utilisé ().",{"$nulls":3},{"$f":"IF(F249<>0,\"A\",0)","v":0}]
[null,"Débroussaillage chimique","m²",null,null,{"$f":"E251*D251","v":{"v":0,"d":"0.00 €"}}]
[null,"Étapes : débroussaillage chimique.\nPrécisions : type de matériel utilisé () ; type de produit utilisé ().",{"$nulls":3},{"$f":"IF(F251<>0,\"A\",0)","v":0}]
[null,"Arrachage","H/UNITE",null,null,{"$f":"E253*D253","v":{"v":0,"d":"0.00 €"}}]
[null,"Étapes : diagnostic préalable ; dégagement du sol ; découpe des grosses racines ; opération d'arrachage ; ramassage et évacuation/valorisation des déchets verts ; remplissage du trou le cas échéant.\nPrécisions : matériel utilisé () ; diamètre de () cm ; nombre d'heures de travail nécessaires () ; comblement par matériaux du site privilégié.",{"$nulls":3},{"$f":"IF(F253<>0,\"A\",0)","v":0}]
[null,"Abattage","H/UNITE",null,null,{"$f":"E255*D255","v":{"v":0,"d":"0.00 €"}}]
[null,"Étapes : diagnostic préalable ; opération d'abattage selon son type ; ramassage et évacuation des déchets verts.\nPrécisions : type d'abattage () ; diamètre de () cm ; nombre d'heures de travail nécessaires ().",{"$nulls":3},{"$f":"IF(F255<>0,\"A\",0)","v":0}]
[null,"Dessouchage","UNITE",null,null,{"$f":"E257*D257","v":{"v":0,"d":"0.00 €"}}]
[null,"Étapes : opération de dessouchage selon son type ; ramassage et évacuation/valorisation des déchets verts ; remplissage du trou le cas échéant.\nPrécisions : dessouchage du type () ; diamètre de la souche () m ; comblement par matériaux du site privilégié.",{"$nulls":3},{"$f":"IF(F257<>0,\"A\",0)","v":0}]
[null,"Taille de prévention des risques","H/UNITE",null,null,{"$f":"E259*D259","v":{"v":0,"d":"0.00 €"}}]
[null,"Étapes : diagnostic préalable ; opération de taille ; épandage (avec/sans broyage) / ramassage et évacuation des résidus de taille.\nPrécisions : nombre d'heures de travail nécessaires ().",{"$nulls":3},{"$f":"IF(F259<>0,\"A\",0)","v":0}]
[null,"Clôture provisoire de protection des arbres","ml/J",null,null,{"$f":"E261*D261","v":{"v":0,"d":"0.00 €"}}]
[null,"Étapes : fourniture et mise en place des constituants de clôture ; dépose.\nPrécisions : clôture de type () et de dimensions () m ; à 1,5 m minimum de la zone végétalisée/projection du houppier.",{"$nulls":3},{"$f":"IF(F261<>0,\"A\",0)","v":0}]
[null,"Système d'aération","UNITE",null,null,{"$f":"E263*D263","v":{"v":0,"d":"0.00 €"}}]
[null,"Étapes : fourniture et mise en place du drain et d'une couche drainante/de terre ressource.\nPrécisions : drain agricole de diamètre () et longueur () cm ; matériaux ().",{"$nulls":3},{"$f":"IF(F263<>0,\"A\",0)","v":0}]
[null,"Protection des racines","ml",null,null,{"$f":"E265*D265","v":{"v":0,"d":"0.00 €"}}]
[null,"Étapes : coupe propre des racines ; fourniture et mise en place d'un mélange de compost ; fourniture et mise en place d'une protection en dur provisoire/longue durée.\nPrécisions : type de compost () ; type de protection ().",{"$nulls":3},{"$f":"IF(F265<>0,\"A\",0)","v":0}]
[null,"Protection mécanique des arbres","UNITE",null,null,{"$f":"E267*D267","v":{"v":0,"d":"0.00 €"}}]
[null,"Étapes : fourniture et réalisation de la protection.\nPrécisions : type de protection ().",{"$nulls":3},{"$f":"IF(F267<>0,\"A\",0)","v":0}]
[null,"Protection des constructions existantes","UNITE",null,null,{"$f":"E269*D269","v":{"v":0,"d":"0.00 €"}}]
[null,"Étapes : fourniture et mise en place de la protection.\nPrécisions : type de protection ().",{"$nulls":3},{"$f":"IF(F269<>0,\"A\",0)","v":0}]
["PC","Visite de la zone pour vérification de l'état de propreté du site et des protections\nRédaction d'un procès-verbal",{"$nulls":3},{"$f":"IF(F225<>0,\"A\",0)","v":0}]
[null,"Travaux de terrassement",{"$nulls":3},{"$f":"IF(SUM(F273:F303)<>0,\"A\",0)","v":0}]
[null,"Implantation du chantier","FORFAIT ",null,null,{"$f":"E273*D273","v":{"v":0,"d":"0.00 €"}}]
[null,"Étapes : réalisation du plan général d'implantation ; piquetage des terrassements.",{"$nulls":3},{"$f":"IF(F273<>0,\"A\",0)","v":0}]
["PC","Validation contradictoire des implantations avec compte rendu de chantier",{"$nulls":3},{"$f":"IF(F273<>0,\"A\",0)","v":0}]
[null,"Décapage","mᵌ",null,null,{"$f":"E276*D276","v":{"v":0,"d":"0.00 €"}}]
[null,"Étapes : identification des différentes couches ; décapage puis stockage de la couche supérieure ; décapage puis stockage des couches sous-jacentes.\nPrécisions : nombre de passages () et profondeur des couches () cm ; type de matériel utilisé () ; sur sol sec.",{"$nulls":3},{"$f":"IF(F276<>0,\"A\",0)","v":0}]
[null,"Concassage","m²",null,null,{"$f":"E278*D278","v":{"v":0,"d":"0.00 €"}}]
[null,"Étapes : concassage.\nPrécisions : type de matériel utilisé ().",{"$nulls":3},{"$f":"IF(F278<>0,\"A\",0)","v":0}]
[null,"Criblage","m²",null,null,{"$f":"E280*D280","v":{"v":0,"d":"0.00 €"}}]
[null,"Étapes : criblage ; évacuation/enfouissage des refus de criblage.\nPrécisions : type de matériel utilisé () ; sur sol sec.",{"$nulls":3},{"$f":"IF(F280<>0,\"A\",0)","v":0}]
[null,"Stockage des terres ressources","m²",null,null,{"$f":"E282*D282","v":{"v":0,"d":"0.00 €"}}]
[null,"Étapes : aménagement de la zone de stockage () ; dépôt des terres ressources ; mise en forme des andains ; bachage/ensemencement éventuel.\nPrécisions : type de matériel utilisé () ; type de bâche imperméable () / dosage de l'ensemencement ().",{"$nulls":3},{"$f":"IF(F282<>0,\"A\",0)","v":0}]
[null,"Déblais et fouilles","mᵌ / m²",null,null,{"$f":"E284*D284","v":{"v":0,"d":"0.00 €"}}]
[null,"Étapes : réalisation des déblais/fouilles ; dressement des parois et lissage/compactage du fond de forme ; stockage sur site/évacuation en décharge agréée (raison sociale, adresse et type d'installation).\nPrécisions : description () ; matériel utilisé ().",{"$nulls":3},{"$f":"IF(F284<>0,\"A\",0)","v":0}]
["PC","Vérification de la conformité avec le plan d'exécution\nVérification de la stabilité des pentes des déblais par test de compactage",{"$nulls":3},{"$f":"IF(F284<>0,\"A\",0)","v":0}]
[null,"Mise en place d'une couche anti-contaminante","ml",null,null,{"$f":"E287*D287","v":{"v":0,"d":"0.00 €"}}]
[null,"Étapes : fourniture et mise en place de la couche anticontaminante.\nPrécisions : type de barrière ().",{"$nulls":3},{"$f":"IF(F287<>0,\"A\",0)","v":0}]
[null,"Mise en place d'un drainage","ml",null,null,{"$f":"E289*D289","v":{"v":0,"d":"0.00 €"}}]
[null,"Étapes : fourniture et mise en place d'un drainage.\nPrécisions : type de drainage ().",{"$nulls":3},{"$f":"IF(F289<>0,\"A\",0)","v":0}]
[null,"Remblais","mᵌ",null,null,{"$f":"E291*D291","v":{"v":0,"d":"0.00 €"}}]
[null,"Étapes : reprise sur stock ; réglage des couches successives ; arrosage éventuel ; compactage ; évacuation des matériaux en excès ; nettoyage de la zone de stockage.\nPrécisions : type de remblaiement () ; matériel utilisé () ; profondeur de () cm avec une tolérance de + ou -  () cm du niveau fini.",{"$nulls":3},{"$f":"IF(F291<>0,\"A\",0)","v":0}]
["PC","Vérification de la stabilité des pentes des remblais par test de compactage",{"$nulls":3},{"$f":"IF(F291<>0,\"A\",0)","v":0}]
[null,"Couche de fondation","mᵌ",null,null,{"$f":"E294*D294","v":{"v":0,"d":"0.00 €"}}]
[null,"Étape : fourniture et mise en place d'une couche d'assise/de fondation  ; réglage fin ; compactage.\nPrécisions : type de matériaux () et granulométrie/dosage () ; épaisseur () cm.",{"$nulls":3},{"$f":"IF(F294<>0,\"A\",0)","v":0}]
[null,"Réglage et compactage","m²",null,null,{"$f":"E296*D296","v":{"v":0,"d":"0.00 €"}}]
[null,"Étapes : réglage ; compactage.\nPrécisions : matériel utilisé () ; tolérance de + ou - () cm du niveau fini ; sans apport/évacuation de matériaux.",{"$nulls":3},{"$f":"IF(F296<>0,\"A\",0)","v":0}]
[null,"Mesure de la portance","FORFAIT ",null,null,{"$f":"E298*D298","v":{"v":0,"d":"0.00 €"}}]
[null,"Précisions : type d'essai et matériel () ; nombre d'essais ().",{"$nulls":3},{"$f":"IF(F298<>0,\"A\",0)","v":0}]
[null,"Terrassement en déblais/remblais","mᵌ / m²",null,null,{"$f":"E300*D300","v":{"v":0,"d":"0.00 €"}}]
[null,"Étapes : mise à niveau des sols et réglage ; compactage ; matériaux excédentaires mis en stock/évacués en décharge agréée (raison sociale, adresse et type d'installation).\nPrécisions : matériel utilisé () ; tolérance de + ou - () cm du niveau fini. ",{"$nulls":3},{"$f":"IF(F300<>0,\"A\",0)","v":0}]
[null,"Mise en forme paysagère","m²",null,null,{"$f":"E302*D302","v":{"v":0,"d":"0.00 €"}}]
[null,"Étapes : finition de mise en forme paysagère.\nPrécisions : avec épierrage et nivèlement fin.",{"$nulls":3},{"$f":"IF(F302<>0,\"A\",0)","v":0}]
["PC","Contrôle visuel",{"$nulls":3},{"$f":"IF(F302<>0,\"A\",0)","v":0}]
[]
[]
["Travaux liés aux revêtements",{"$nulls":4},{"$f":"IF(MAX(F316:F397)<>0,\"A\",0)","v":0}]
[]
[null,"Implantation et piquetage","FORFAIT ",null,null,{"$f":"E309*D309","v":{"v":0,"d":"0.00 €"}}]
[null,"Étapes : piquetage ; matérialisation des zones travaillées ; établissement des plans d'exécution définitifs.",{"$nulls":3},{"$f":"IF(F309<>0,\"A\",0)","v":0}]
["PC","Vérification de la correspondance au plan d'exécution",{"$nulls":3},{"$f":"IF(F309<>0,\"A\",0)","v":0}]
[null,"Diagnostic initiale","FORFAIT ",null,null,{"$f":"E312*D312","v":{"v":0,"d":"0.00 €"}}]
[null,"Rédaction d'un cahier des charges spécifique à partir de l'état initial du terrain, les demandes du client et l'usage futur du revêtement.",{"$nulls":3},{"$f":"IF(F312<>0,\"A\",0)","v":0}]
["PC","Faire valider au client un échantillon du/des matériau(x) utilisé(s) pour réaliser le(s) revêtement(s)\nInformer le client que l'aspect du matériau peut se modifier naturellement au cours de son vieillissement\nVérification de la compatibilité des produits avec le cahier des charges et de la conformité des matériaux livrés\nRéception contradictoire du chantier et acceptation du support\n[Réalisation d'études, fouilles et fondations adaptées - cf. Travaux de terrassements des aménagements paysagers]",{"$nulls":3},{"$f":"IF(F312<>0,\"A\",0)","v":0}]
[null,"IMPORTANT : le devis de travaux doit intégrer une clause d’acceptation dans laquelle le client concède à l’entrepreneur la décision d’accepter ou non le support. Les dimensions et les cotes de l’assise sont vérifiées",{"$nulls":3},{"$f":"IF(F307<>0,\"A\",0)","v":0}]
[null,"Pavage et dallage",{"$nulls":3},{"$f":"IF(SUM(F317:F328)<>0,\"A\",0)","v":0}]
[null,"Pavés en pierre naturelle","m²",null,null,{"$f":"E317*D317","v":{"v":0,"d":"0.00 €"}}]
[null,"Étapes : réalisation du lit de pose ; fourniture et pose des pavés ; réalisation des joints ; coupe ; blocage ; nettoyage.\nPrécisions : matériau du lit de pose () ; type de pavés en pierre () ; matériau des joints ().",{"$nulls":3},{"$f":"IF(F317<>0,\"A\",0)","v":0}]
[null,"Pavés en béton préfabriqué","m²",null,null,{"$f":"E319*D319","v":{"v":0,"d":"0.00 €"}}]
[null,"Étapes : réalisation du lit de pose ; fourniture et pose des pavés mécanisée/manuelle/sur plots ; réalisation des joints ; coupe ;  blocage ; nettoyage.\nPrécisions : matériau du lit de pose () ; type de pavés en béton () ; matériau des joints ().",{"$nulls":3},{"$f":"IF(F319<>0,\"A\",0)","v":0}]
[null,"Pavés en matériaux modulaires","m²",null,null,{"$f":"E321*D321","v":{"v":0,"d":"0.00 €"}}]
[null,"Étapes : réalisation du lit de pose ; fourniture et pose des pavés ; réalisation des joints ; coupe ;  blocage ; nettoyage.\nPrécisions : matériau du lit de pose () ; type de pavés () ; matériau des joints ().",{"$nulls":3},{"$f":"IF(F321<>0,\"A\",0)","v":0}]
[null,"Dalles en pierre naturelle","m²",null,null,{"$f":"E323*D323","v":{"v":0,"d":"0.00 €"}}]
[null,"Étapes : réalisation du lit de pose ; fourniture et pose des dalles ; réalisation des joints ; coupe ;  blocage ; nettoyage.\nPrécisions : matériau du lit de pose () ; type de dalles en pierre () ; matériau des joints ().",{"$nulls":3},{"$f":"IF(F323<>0,\"A\",0)","v":0}]
[null,"Dalles en béton préfabriqué","m²",null,null,{"$f":"E325*D325","v":{"v":0,"d":"0.00 €"}}]
[null,"Étapes : réalisation du lit de pose ; fourniture et pose des dalles mécanisée/manuelle/sur plots ; réalisation des joints ; coupe ;  blocage ; nettoyage.\nPrécisions : matériau du lit de pose () ; type de dalles en béton () ; matériau des joints ().",{"$nulls":3},{"$f":"IF(F325<>0,\"A\",0)","v":0}]
[null,"Dalles en matériaux modulaires","m²",null,null,{"$f":"E327*D327","v":{"v":0,"d":"0.00 €"}}]
[null,"Étapes : réalisation du lit de pose ; fourniture et pose des dalles ; réalisation des joints ; coupe ;  blocage ; nettoyage.\nPrécisions : matériau du lit de pose () ; type de dalles () ; matériau des joints ().",{"$nulls":3},{"$f":"IF(F327<>0,\"A\",0)","v":0}]
["PC","Contrôle de l'épaisseur des joints\nVérifier le respect des pentes, de la planéité et des côtes\nVérifier l'accessibilité",{"$nulls":3},{"$f":"IF(F316<>0,\"A\",0)","v":0}]
[null,"Revêtement en béton coulé en place",{"$nulls":3},{"$f":"IF(SUM(F332:F346)<>0,\"A\",0)","v":0}]
["PC","Vérification de la protection des ouvrages existants et du balisage",{"$nulls":3},{"$f":"IF(F330<>0,\"A\",0)","v":0}]
[null,"Reprise sur dallage coulé existant","m²",null,null,{"$f":"E332*D332","v":{"v":0,"d":"0.00 €"}}]
[null,"Étapes : lavage ; dépoussiérage/mise en place d'une résine d'accrochage.\nPrécisions : matériel/résine utilisé ().",{"$nulls":3},{"$f":"IF(F332<>0,\"A\",0)","v":0}]
["PC","Notification écrite de l'acceptation ou non de la dalle en place (la dépose est conseillée en cas de doute)",{"$nulls":3},{"$f":"IF(F332<>0,\"A\",0)","v":0}]
[null,"Revêtement béton","m²",null,null,{"$f":"E335*D335","v":{"v":0,"d":"0.00 €"}}]
[null,"Étapes : nettoyage du support ; finition de compactage et reprofilage éventuels ; piquetage ; fourniture et mise en oeuvre du coffrage avec agents de décoffrage ; adjuvants/spécificités éventuels ; fourniture et coulage du béton ; réalisation des joints ; talochage/lissage ; fourniture et application de produits de finitions éventuelles ; période de durcissement.\nPrécisions : dosage du béton () kg/m3 ; type d'adjuvant/spécificités () ; type de joints () ; type de produits de finition () ; matériel utilisé () ; épaisseur de la dalle ().",{"$nulls":3},{"$f":"IF(F335<>0,\"A\",0)","v":0}]
[null,"Revêtement béton désactivé","m²",null,null,{"$f":"E337*D337","v":{"v":0,"d":"0.00 €"}}]
[null,"Étapes : nettoyage du support ; finition de compactage et reprofilage éventuels ; piquetage ; fourniture et mise en oeuvre du coffrage avec agents de décoffrage ; adjuvants/spécificités éventuels ; fourniture et coulage du béton ; réalisation des joints ; talochage/lissage ; fourniture et application d'un désactivant ; lavage par jet haute pression ; rinçage à l'eau claire.\nPrécisions : dosage du béton () kg/m3 ; type d'agrégats () ; type d'adjuvant/spécificités () ; type de joints () ; type de désactivant () ; matériel utilisé () ; épaisseur de la dalle ().",{"$nulls":3},{"$f":"IF(F337<>0,\"A\",0)","v":0}]
[null,"Revêtement béton brut surfacé (balayé/brossé)","m²",null,null,{"$f":"E339*D339","v":{"v":0,"d":"0.00 €"}}]
[null,"Étapes : nettoyage du support ; finition de compactage et reprofilage éventuels ; piquetage ; fourniture et mise en oeuvre du coffrage avec agents de décoffrage ; adjuvants/spécificités éventuels ; fourniture et coulage du béton ; réalisation des joints ; finition mécanique/manuelle sur béton frais.\nPrécisions : dosage du béton () kg/m3 ; type d'adjuvant/spécificités () ; type de joints () ; type de produit de finition () ; matériel utilisé () ; épaisseur de la dalle ().",{"$nulls":3},{"$f":"IF(F339<>0,\"A\",0)","v":0}]
[null,"Revêtement béton brut surfacé (bouchardé/hydrosablé...)","m²",null,null,{"$f":"E341*D341","v":{"v":0,"d":"0.00 €"}}]
[null,"Étapes : nettoyage du support ; finition de compactage et reprofilage éventuels ; piquetage ; fourniture et mise en oeuvre du coffrage avec agents de décoffrage ; adjuvants/spécificités éventuels ; fourniture et coulage du béton ; réalisation des joints ; talochage/lissage ; fourniture et application de produits de finitions éventuelles ; finition mécanique/manuelle sur béton dur.\nPrécisions : dosage du béton () kg/m3 ; type d'adjuvant/spécificités () ; type de joints () ; type de produit de finition () ; matériel utilisé () ; épaisseur de la dalle ().",{"$nulls":3},{"$f":"IF(F341<>0,\"A\",0)","v":0}]
[null,"Revêtement béton poreux","m²",null,null,{"$f":"E343*D343","v":{"v":0,"d":"0.00 €"}}]
[null,"Étapes : nettoyage du support ; finition de compactage et reprofilage éventuels ; piquetage ; fourniture et mise en oeuvre du coffrage avec agents de décoffrage ; adjuvants/spécificités éventuels ; fourniture et coulage du béton ; réalisation des joints ; talochage/lissage ;  période de durcissement.\nPrécisions : dosage du béton () kg/m3 ; type d'adjuvant/spécificités () ; type de joints () ; matériel utilisé () ; épaisseur de la dalle ().",{"$nulls":3},{"$f":"IF(F343<>0,\"A\",0)","v":0}]
[null,"Revêtement béton imprimé","m²",null,null,{"$f":"E345*D345","v":{"v":0,"d":"0.00 €"}}]
[null,"Étapes : nettoyage du support ; finition de compactage et reprofilage éventuels ; piquetage ; fourniture et mise en oeuvre du coffrage avec agents de décoffrage ; adjuvants/spécificités éventuels ; fourniture et coulage du béton ; réalisation des joints ; damage et lissage ; fourniture et application d'un durcisseur de surface en deux passages avec lissage ; fourniture et application d'un produit démoulant ; application des matrices/empreintes et damage ; nettoyage au jet haute pression ; fourniture et application d'un vernis durcisseur ; période de durcissement.\nPrécisions : dosage du béton () kg/m3 ; type d'adjuvant/spécificités () ; type de joints () ; type de produits utilisés () ; matériel utilisé () ; épaisseur de la dalle ().",{"$nulls":3},{"$f":"IF(F345<>0,\"A\",0)","v":0}]
["PC","Contrôle de la qualité, de la planimétrie et de l'aspect du revêtement béton",{"$nulls":3},{"$f":"IF(F330<>0,\"A\",0)","v":0}]
[null,"Platelage bois",{"$nulls":3},{"$f":"IF(SUM(F349:F352)<>0,\"A\",0)","v":0}]
[null,"Supports spéciaux pour platelage bois","m²/UNITE",null,null,{"$f":"E349*D349","v":{"v":0,"d":"0.00 €"}}]
[null,"Étapes : fourniture et mise en place de plots/poteaux/ancrages.\nPrécisions : type de support et spécificités ().",{"$nulls":3},{"$f":"IF(F349<>0,\"A\",0)","v":0}]
[null,"Platelage bois","m²",null,null,{"$f":"E351*D351","v":{"v":0,"d":"0.00 €"}}]
[null,"Étapes : fourniture et mise en place des cales de désolidarisation, des lambourdes/solives, des dalles/lames ; coupe ; finitions.\nPrécisions : type de platelage/lame () ; type de fixation ().",{"$nulls":3},{"$f":"IF(F351<>0,\"A\",0)","v":0}]
["PC","Vérification des fixations, de la finition des lames, des niveaux",{"$nulls":3},{"$f":"IF(F351<>0,\"A\",0)","v":0}]
[null,"Revêtements hydrocarbonés",{"$nulls":3},{"$f":"IF(SUM(F356:F366)<>0,\"A\",0)","v":0}]
["PC","Vérifier les pentes et la bonne compaction de la couche de base",{"$nulls":3},{"$f":"IF(F354<>0,\"A\",0)","v":0}]
[null,"Enrobé bitumeux","m²",null,null,{"$f":"E356*D356","v":{"v":0,"d":"0.00 €"}}]
[null,"Étapes : fourniture et mise en place de l'enrobé bitumeux ; répandage ; compactage ; finitions.\nPrécisions : type d'enrobé () et mode de mise en œuvre () ; matériel utilisé ().",{"$nulls":3},{"$f":"IF(F356<>0,\"A\",0)","v":0}]
[null,"Asphalte coulé","m²",null,null,{"$f":"E358*D358","v":{"v":0,"d":"0.00 €"}}]
[null,"Étapes : fourniture et coulage à chaud de l'asphalte ; répandage ; finitions.\nPrécisions : type d'asphalte () et mode de mise en œuvre () ; matériel utilisé ().",{"$nulls":3},{"$f":"IF(F358<>0,\"A\",0)","v":0}]
[null,"Enduit superficiel","m²",null,null,{"$f":"E360*D360","v":{"v":0,"d":"0.00 €"}}]
[null,"Étapes : fourniture et mise en place de la couche de liant et du gravillonnage et compactage ; répétitions éventuelles, selon la mise en oeuvre ; finitions.\nPrécisions : type d'enduit () et mode de mise en œuvre () ; matériel utilisé ().",{"$nulls":3},{"$f":"IF(F360<>0,\"A\",0)","v":0}]
["PC","Vérification de la planéité, du respect des pentes et de l'uniformité du revêtement",{"$nulls":3},{"$f":"IF(SUM(F356:F361)<>0,\"A\",0)","v":0}]
[null,"Marquage au sol","ml/m²",null,null,{"$f":"E363*D363","v":{"v":0,"d":"0.00 €"}}]
[null,"Étapes : fourniture et application de peinture routière.\nPrécisions : type de peinture (), marquage temporaire/permanent ; matériel utilisé ().",{"$nulls":3},{"$f":"IF(F363<>0,\"A\",0)","v":0}]
[null,"Marquage au sol - éléments de signalisation","UNITE",null,null,{"$f":"E365*D365","v":{"v":0,"d":"0.00 €"}}]
[null,"Étapes : fourniture et application de peinture routière.\nPrécisions : type de peinture (), marquage temporaire/permanent ; matériel utilisé ().",{"$nulls":3},{"$f":"IF(F365<>0,\"A\",0)","v":0}]
[null,"Revêtement alvéolaire",{"$nulls":3},{"$f":"IF(SUM(F368:F373)<>0,\"A\",0)","v":0}]
[null,"Dalles alvéolaires","m²",null,null,{"$f":"E368*D368","v":{"v":0,"d":"0.00 €"}}]
[null,"Étapes : fourniture et mise en place de la couche de réglage ; fourniture et pose éventuelle d'un géotextile ; fourniture et pose au sable des dalles ; fourniture et mise en place des matériaux de remplissage (éventuellement vibrés) ; ratissage.\nPrécisions : type de dalle () ; type de géotextile éventuel () ; matériaux de la couche de réglage () ; matériaux de remplissage des alvéoles () ; matériel utilisé () ; sur fondations perméables.",{"$nulls":3},{"$f":"IF(F368<>0,\"A\",0)","v":0}]
[null,"Dalles alvéolaires engazonnées","m²",null,null,{"$f":"E370*D370","v":{"v":0,"d":"0.00 €"}}]
[null,"Étapes : fourniture et mise en place éventuelle d'un mélange concassé-terre vévétale pour la fondation ; fourniture et mise en place de la couche de réglage ; fourniture et pose au sable des dalles ; fourniture et mise en place des matériaux de remplissage ; semis ; arrosage.\nPrécisions : type de dalle () ; matériaux de la couche de réglage () ; matériaux de remplissage des alvéoles () ; matériel utilisé () ; type de gazon () ; sur fondations perméables et non gelives.",{"$nulls":3},{"$f":"IF(F370<>0,\"A\",0)","v":0}]
[null,"Dalles alvéolaires préplantées","m²",null,null,{"$f":"E372*D372","v":{"v":0,"d":"0.00 €"}}]
[null,"Étapes : fourniture et mise en place éventuelle d'un mélange concassé-terre vévétale pour la fondation ; fourniture et mise en place de la couche de réglage ; fourniture et pose au sable des dalles ; arrosage.\nPrécisions : type de dalle () ; matériaux de la couche de réglage () ; matériel utilisé () ; sur fondations perméables et non gelives.",{"$nulls":3},{"$f":"IF(F372<>0,\"A\",0)","v":0}]
[null,"Sols stabilisés",{"$nulls":3},{"$f":"IF(SUM(F375:F378)<>0,\"A\",0)","v":0}]
[null,"Sol stabilisé sablé","m²",null,null,{"$f":"E375*D375","v":{"v":0,"d":"0.00 €"}}]
[null,"Étapes : fourniture et dépose du stabilisé en plusieurs passages ; réglage du niveau et des pentes manuel/mécanique ; humidification et compactage.\nPrécisions : type de matériaux () ; épaisseur () cm ; matériel utilisé () ; sur couche de grave réglée et compactée préalable.",{"$nulls":3},{"$f":"IF(F375<>0,\"A\",0)","v":0}]
[null,"Sol stabilisé renforcé","m²",null,null,{"$f":"E377*D377","v":{"v":0,"d":"0.00 €"}}]
[null,"Étapes : fourniture et dépose du stabilisé en plusieurs passages ; réglage du niveau et des pentes manuel/mécanique ; compactage ; protection durant le temps de prise.\nPrécisions : type de matériaux () ; type de liant () et adjuvants éventuels ; épaisseur () cm ; matériel utilisé () ; sur couche de grave réglée et compactée préalable.",{"$nulls":3},{"$f":"IF(F377<>0,\"A\",0)","v":0}]
["PC","Vérification des niveaux",{"$nulls":3},{"$f":"IF(F374<>0,\"A\",0)","v":0}]
[null,"Bordures et caniveaux",{"$nulls":3},{"$f":"IF(SUM(F381:F396)<>0,\"A\",0)","v":0}]
[null,"Bordures en béton","ml",null,null,{"$f":"E381*D381","v":{"v":0,"d":"0.00 €"}}]
[null,"Étapes : fourniture et pose de la bordure sur lit de béton ; calage ; joints éventuels.\nPrécisions : type de bordure () ; type et dosage du béton () ; type de joint éventuel () ; sur fondation béton préalable et fond de fouille compacté.",{"$nulls":3},{"$f":"IF(F381<>0,\"A\",0)","v":0}]
[null,"Caniveaux en béton","ml",null,null,{"$f":"E383*D383","v":{"v":0,"d":"0.00 €"}}]
[null,"Étapes : fourniture et pose du caniveau sur lit de béton ; calage ; joints éventuels.\nPrécisions : type de caniveau () ; type et dosage du béton () ; type de joint éventuel () ; sur fondation béton préalable et fond de fouille compacté.",{"$nulls":3},{"$f":"IF(F383<>0,\"A\",0)","v":0}]
[null,"Bordures en pierre","ml",null,null,{"$f":"E385*D385","v":{"v":0,"d":"0.00 €"}}]
[null,"Étapes : fourniture et pose de la bordure sur lit de béton ; calage ; joints éventuels.\nPrécisions : type de bordure () ; type et dosage du béton () ; type de joint éventuel () ; sur fondation béton préalable et fond de fouille compacté.",{"$nulls":3},{"$f":"IF(F385<>0,\"A\",0)","v":0}]
[null,"Caniveaux en pierre","ml",null,null,{"$f":"E387*D387","v":{"v":0,"d":"0.00 €"}}]
[null,"Étapes : fourniture et pose du caniveau sur lit de béton ; calage ; joints éventuels.\nPrécisions : type de caniveau () ; type et dosage du béton () ; type de joint éventuel () ; sur fondation béton préalable et fond de fouille compacté.",{"$nulls":3},{"$f":"IF(F387<>0,\"A\",0)","v":0}]
[null,"Bordures esthétiques en bois - fichées","ml",null,null,{"$f":"E389*D389","v":{"v":0,"d":"0.00 €"}}]
[null,"Étapes : fourniture et fichage en terre de la bordure.\nPrécisions : type de bordure () ; type de bois ().",{"$nulls":3},{"$f":"IF(F389<>0,\"A\",0)","v":0}]
[null,"Bordures esthétiques en bois - scellées","ml",null,null,{"$f":"E391*D391","v":{"v":0,"d":"0.00 €"}}]
[null,"Étapes : fourniture et scellement au béton de la bordure.\nPrécisions : type de bordure () ; type de bois () ; type et dosage du béton () ; sur lit drainant ; pas de contact entre la bordure bois et le béton.",{"$nulls":3},{"$f":"IF(F391<>0,\"A\",0)","v":0}]
[null,"Bordures flexibles - fichées","ml",null,null,{"$f":"E393*D393","v":{"v":0,"d":"0.00 €"}}]
[null,"Étapes : fourniture et fichage en terre de la bordure.\nPrécisions : type de bordure ().",{"$nulls":3},{"$f":"IF(F393<>0,\"A\",0)","v":0}]
[null,"Bordures flexibles - scellées","ml",null,null,{"$f":"E395*D395","v":{"v":0,"d":"0.00 €"}}]
[null,"Étapes : fourniture et scellement au béton de la bordure.\nPrécisions : type de bordure () ; type et dosage du béton ().",{"$nulls":3},{"$f":"IF(F395<>0,\"A\",0)","v":0}]
["PC","Vérification de l'alignement",{"$nulls":3},{"$f":"IF(F380<>0,\"A\",0)","v":0}]
[]
[]
["Travaux de mise en place de murets paysagers et d'escaliers",{"$nulls":4},{"$f":"IF(MAX(F403:F464)<>0,\"A\",0)","v":0}]
[]
["PC","Faire valider au client un échantillon du/des matériau(x) utilisé(s) et le calepinage\n[Les travaux de murets paysagers et d'escaliers sont réalisés après une étude de sol, des fouilles et une fondation\nadaptées à l'ouvrage, et un drainage si nécessaire (cf. Travaux de terrassement des aménagements paysagers)]",{"$nulls":3},{"$f":"IF(F400<>0,\"A\",0)","v":0}]
[null,"Muret paysager (muret de clôture ou retenue de sol)",{"$nulls":3},{"$f":"IF(SUM(F404:F427)<>0,\"A\",0)","v":0}]
[null,"Muret paysager en pierres naturelles maçonnées","m²",null,null,{"$f":"E404*D404","v":{"v":0,"d":"0.00 €"}}]
[null,"Étapes : fourniture et montage du mur en pierres ; couronnement.\nPrécisions : type de pierres () ; type de liant et dosage () ; type de couronnement ().",{"$nulls":3},{"$f":"IF(F404<>0,\"A\",0)","v":0}]
[null,"Muret paysager en briques","m²",null,null,{"$f":"E406*D406","v":{"v":0,"d":"0.00 €"}}]
[null,"Étapes : fourniture et montage du mur en briques ; couronnement.\nPrécisions : type de briques () ; type de liant et dosage () ; type de couronnement ().",{"$nulls":3},{"$f":"IF(F406<>0,\"A\",0)","v":0}]
[null,"Muret paysager en moellons artificiels (parpaings)","m²",null,null,{"$f":"E408*D408","v":{"v":0,"d":"0.00 €"}}]
[null,"Étapes : fourniture et montage du mur en parpaings ; couronnement.\nPrécisions : type de parpaings () ; type de liant () ; type de couronnement ().",{"$nulls":3},{"$f":"IF(F408<>0,\"A\",0)","v":0}]
[null,"Muret paysager en pierres brutes (\"pierres sèches\")","m²",null,null,{"$f":"E410*D410","v":{"v":0,"d":"0.00 €"}}]
[null,"Étapes : fourniture des pierres et montage du mur par calage à trois points, avec remplissage et drain ; couronnement ; remblaiement éventuel (retenue de sol).\nPrécisions : type de pierres () ; type d'appareillage () ; type de socle ().",{"$nulls":3},{"$f":"IF(F410<>0,\"A\",0)","v":0}]
[null,"Muret paysager en béton coulé","m²",null,null,{"$f":"E412*D412","v":{"v":0,"d":"0.00 €"}}]
[null,"Étapes : fourniture et mise en oeuvre du coffrage ; fourniture et mise en oeuvre de l'armature ; fourniture et coulage du béton ; finitions manuelles/mécaniques éventuelles ; période de durcissement.\nPrécisions : dosage du béton () kg/m3 ; type de coffrage ; type de finitions () ; matériel utilisé ().",{"$nulls":3},{"$f":"IF(F412<>0,\"A\",0)","v":0}]
[null,"Muret paysager en éléments manu-portables en béton","m²",null,null,{"$f":"E414*D414","v":{"v":0,"d":"0.00 €"}}]
[null,"Étapes : fourniture et assemblage des éléments ; couronnement.\nPrécisions : type d'éléments () et dimensions () ; type d'assemblage () ; type de couronnement ().",{"$nulls":3},{"$f":"IF(F414<>0,\"A\",0)","v":0}]
[null,"Mur de soutènement en éléments préfabriqués","ml",null,null,{"$f":"E416*D416","v":{"v":0,"d":"0.00 €"}}]
[null,"Étapes : fourniture et mise en place manuelle/mécanique des éléments, avec drain ; remblaiement par couches successives compactées ; couronnement.\nPrécisions : type d'éléments () et dimensions () ; matériel utilisé () ; type de couronnement () ; sur fondation béton.",{"$nulls":3},{"$f":"IF(F416<>0,\"A\",0)","v":0}]
[null,"Muret paysager en bois - fiché","ml",null,null,{"$f":"E418*D418","v":{"v":0,"d":"0.00 €"}}]
[null,"Étapes : fourniture et mise en œuvre des pièces de bois ; drain et nappe de protection alvéolaire (si retenue de sol).\nPrécisions : type de pièces de bois () ; type de bois () ; type de mise en œuvre () ; type de nappe alvéolaire éventuelle () ; type de drain éventuel (). ",{"$nulls":3},{"$f":"IF(F418<>0,\"A\",0)","v":0}]
[null,"Muret paysager en bois - scellé","ml",null,null,{"$f":"E420*D420","v":{"v":0,"d":"0.00 €"}}]
[null,"Étapes : fourniture et mise en œuvre des pièces de bois ; drain et nappe de protection alvéolaire (si retenue de sol).\nPrécisions : type de pièces de bois () ; type de bois () ; type de mise en œuvre () ; type de nappe alvéolaire éventuelle () ; type de drain éventuel () ; type et dosage du béton () ; pas de contact entre le bois et le béton.",{"$nulls":3},{"$f":"IF(F420<>0,\"A\",0)","v":0}]
[null,"Muret paysager en gabions","mᵌ",null,null,{"$f":"E422*D422","v":{"v":0,"d":"0.00 €"}}]
[null,"Étapes : fourniture et mise en place de gabions (remplissage sur place/préalable).\nPrécisions : type de cage () en acier galvanisé ; type de matériaux de remplissage () non gélifs/non friables.",{"$nulls":3},{"$f":"IF(F422<>0,\"A\",0)","v":0}]
[null,"Enrochement","m²",null,null,{"$f":"E424*D424","v":{"v":0,"d":"0.00 €"}}]
[null,"Étapes : drainage éventuel avec géotextile ; fourniture et assemblage de l'enrochement, avec comblement des interstices par matériau drainant ; remblaiement à l'avancement avec compactage.\nPrécisions : type d'assemblage () ; type de roches et de matériau de comblement () ; type de drainage () ; matériel utilisé ().",{"$nulls":3},{"$f":"IF(F424<>0,\"A\",0)","v":0}]
[null,"Drain","ml",null,null,{"$f":"E426*D426","v":{"v":0,"d":"0.00 €"}}]
[null,"Étapes : fourniture et pose d'un drain ; remblaiment.\nPrécisions : type de drain et dimensions () ; type de remblaiement () ; type de membrane () et géotextile éventuel ().",{"$nulls":3},{"$f":"IF(F426<>0,\"A\",0)","v":0}]
[null,"Parement en pierres naturelles maçonnées","m²",null,null,{"$f":"E428*D428","v":{"v":0,"d":"0.00 €"}}]
[null,"Étapes : fourniture et montage du mur en moellons appareillés à bain de mortier.\nPrécisions : type de moellons () ; type de mortier et dosage ().",{"$nulls":3},{"$f":"IF(F428<>0,\"A\",0)","v":0}]
[null,"Parement par éléments collés","m²",null,null,{"$f":"E430*D430","v":{"v":0,"d":"0.00 €"}}]
[null,"Étapes : fourniture et mise en place du parement.\nPrécisions : type de parement () ; type de mise en oeuvre ().",{"$nulls":3},{"$f":"IF(F430<>0,\"A\",0)","v":0}]
[null,"Parement enduit","m²",null,null,{"$f":"E432*D432","v":{"v":0,"d":"0.00 €"}}]
[null,"Étapes : mise en œuvre de l'enduit ; finitions.\nPrécision : type d'enduit (). ; type de finitions () ; matériel utilisé ().",{"$nulls":3},{"$f":"IF(F432<>0,\"A\",0)","v":0}]
[null,"Escaliers et gradines",{"$nulls":3},{"$f":"IF(SUM(F435:F454)<>0,\"A\",0)","v":0}]
[null,"Escalier maçonné (par coffrage)","ml",null,null,{"$f":"E435*D435","v":{"v":0,"d":"0.00 €"}}]
[null,"Étapes : fourniture et mise en oeuvre du coffrage ; fourniture et mise en oeuvre de l'armature éventuelle ; fourniture et coulage du béton, vibré ; temps de prise ; collage des éléments de marches.\nPrécisions : dosage du béton () kg/m3 ; type de coffrage ; type de collage () ; matériel utilisé () ; sur couche de propreté préalable en grave ou en béton.",{"$nulls":3},{"$f":"IF(F435<>0,\"A\",0)","v":0}]
[null,"Escalier maçonné (à l'avancement)","ml",null,null,{"$f":"E437*D437","v":{"v":0,"d":"0.00 €"}}]
[null,"Étapes : fourniture et mise en place des éléments de l'escalier.\nPrécisions : type de matériau () ; type de pose/scellement () ; sur le sol ou sur fondation préalable.",{"$nulls":3},{"$f":"IF(F437<>0,\"A\",0)","v":0}]
[null,"Escalier maçonné (à marches palières)","ml",null,null,{"$f":"E439*D439","v":{"v":0,"d":"0.00 €"}}]
[null,"Étapes : fourniture et mise en place des dalles.\nPrécisions : type de dalles () ; type de scellement () ; sur support préalable.",{"$nulls":3},{"$f":"IF(F439<>0,\"A\",0)","v":0}]
[null,"Escalier en bois","ml",null,null,{"$f":"E441*D441","v":{"v":0,"d":"0.00 €"}}]
[null,"Étapes : fourniture et fixation des pièces de bois ; mise en place du giron.\nPrécisions : type de pièces de bois () ; type de bois () ; type de fixation () ; type de giron () ; sur le sol ou sur fondation préalable drainante.",{"$nulls":3},{"$f":"IF(F441<>0,\"A\",0)","v":0}]
[null,"Gradines","ml",null,null,{"$f":"E443*D443","v":{"v":0,"d":"0.00 €"}}]
[null,"Étapes : fourniture et fixation des contremarches ; mise en place du giron.\nPrécisions : type de contremarches () ; type de fixation () ; type de giron ().",{"$nulls":3},{"$f":"IF(F443<>0,\"A\",0)","v":0}]
[null,"Pose d'un regard/caniveau","UNITE",null,null,{"$f":"E445*D445","v":{"v":0,"d":"0.00 €"}}]
[null,"Étapes : fourniture et pose du regard.\nPrécisions : regard de type () et dimensions () ; type de fixation ().",{"$nulls":3},{"$f":"IF(F445<>0,\"A\",0)","v":0}]
[null,"Parement/revêtement en pierres naturelles maçonnées","m²",null,null,{"$f":"E447*D447","v":{"v":0,"d":"0.00 €"}}]
[null,"Étapes : fourniture et montage en moellons appareillés à bain de mortier.\nPrécisions : type de moellons () ; type de mortier et dosage ().",{"$nulls":3},{"$f":"IF(F447<>0,\"A\",0)","v":0}]
[null,"Parement/revêtement par éléments collés","m²",null,null,{"$f":"E449*D449","v":{"v":0,"d":"0.00 €"}}]
[null,"Étapes : fourniture et mise en place du parement.\nPrécisions : type de parement () ; type de mise en oeuvre ().",{"$nulls":3},{"$f":"IF(F449<>0,\"A\",0)","v":0}]
[null,"Parement enduit","m²",null,null,{"$f":"E451*D451","v":{"v":0,"d":"0.00 €"}}]
[null,"Étapes : mise en œuvre de l'enduit ; finitions.\nPrécision : type d'enduit (). ; type de finitions () ; matériel utilisé ().",{"$nulls":3},{"$f":"IF(F451<>0,\"A\",0)","v":0}]
[null,"Finition visuelle","ml",null,null,{"$f":"E453*D453","v":{"v":0,"d":"0.00 €"}}]
[null,"Fourniture et pose d'une finition visuelle.\nPrécisions : type de finition ().",{"$nulls":3},{"$f":"IF(F453<>0,\"A\",0)","v":0}]
["PC","Vérifier la bonne évacuation des eaux pluviales\nTest de praticabilité",{"$nulls":3},{"$f":"IF(F434<>0,\"A\",0)","v":0}]
[null,"Muret paysager/escalier en béton coulé (détail)",{"$nulls":3},{"$f":"IF(SUM(F457:F464)<>0,\"A\",0)","v":0}]
[null,"Coffrage","m²",null,null,{"$f":"E457*D457","v":{"v":0,"d":"0.00 €"}}]
[null,"Étapes : fourniture et mise en œuvre du coffrage.\nPrécisions : type de coffrage ().",{"$nulls":3},{"$f":"IF(F457<>0,\"A\",0)","v":0}]
[null,"Armatures","kg",null,null,{"$f":"E459*D459","v":{"v":0,"d":"0.00 €"}}]
[null,"Étapes : fourniture et mise en œuvre d’armatures.\nPrécisions : suivant le plan de ferraillage, pour un béton de () kg/m3.",{"$nulls":3},{"$f":"IF(F459<>0,\"A\",0)","v":0}]
[null,"Béton coulé","mᵌ",null,null,{"$f":"E461*D461","v":{"v":0,"d":"0.00 €"}}]
[null,"Étapes : fourniture et mise en œuvre de béton ; finition manuelle/mécanique éventuelle.\nPrécisions : dosage du béton () kg/m3 ; type de finition () ; matériel utilisé ().",{"$nulls":3},{"$f":"IF(F461<>0,\"A\",0)","v":0}]
[null,"Drain","ml",null,null,{"$f":"E463*D463","v":{"v":0,"d":"0.00 €"}}]
[null,"Étapes : fourniture et pose d'un drain ; remblaiment.\nPrécisions : type de drain et dimensions () ; type de remblaiement () ; type de membrane () et géotextile éventuel ().",{"$nulls":3},{"$f":"IF(F463<>0,\"A\",0)","v":0}]
[]
[]
["Travaux de réalisation de clôtures",{"$nulls":4},{"$f":"IF(MAX(F471:F513)<>0,\"A\",0)","v":0}]
[]
[null,"Etat des lieux","FORFAIT ",null,null,{"$f":"E469*D469","v":{"v":0,"d":"0.00 €"}}]
[null,"Étapes : diagnostics/études ; repérages ; relevés de terrain ; calepinage.\nPrécisions : dans certains cas les sondages de sol à la tarière peuvent être remplacés par une étude de sol (non comprise) ; l'état des lieux est suivi d'un terrassement général, du piquetage des réseaux et d'un nivellement (non compris) ; le terrain doit avoir été borné.",{"$nulls":3},{"$f":"IF(F469<>0,\"A\",0)","v":0}]
[null,"Éléménts de clôtures",{"$nulls":3},{"$f":"IF(SUM(F472:F499)<>0,\"A\",0)","v":0}]
[null,"Poteaux scellés","ml",null,null,{"$f":"E472*D472","v":{"v":0,"d":"0.00 €"}}]
[null,"Étapes : ouverture de la fouille ; fourniture et mise en place d'un drain (poteaux bois) ; fourniture et coulage du béton ; fourniture et mise en place du poteau.\nPrécisions : dosage du béton () kg/m3 ; profondeur () ; type de drainage () ; type de poteau () et nombre ().",{"$nulls":3},{"$f":"IF(F472<>0,\"A\",0)","v":0}]
[null,"Poteaux sur platine","ml",null,null,{"$f":"E474*D474","v":{"v":0,"d":"0.00 €"}}]
[null,"Étapes : fourniture et boulonnage/chevillage chimique des platines sur bloc plein ; fourniture et soudure/boulonnage du poteau.\nPrécisions : type de platine () ; type de poteau () et nombre ().",{"$nulls":3},{"$f":"IF(F474<>0,\"A\",0)","v":0}]
[null,"Poteaux fichés","ml",null,null,{"$f":"E476*D476","v":{"v":0,"d":"0.00 €"}}]
[null,"Étapes : fourniture et enfoncement manuel/mécanique du poteau.\nPrécisions : type de poteau () et nombre () ; type d'embase inox le cas échéant ().",{"$nulls":3},{"$f":"IF(F476<>0,\"A\",0)","v":0}]
[null,"Poteaux bloqués","ml",null,null,{"$f":"E478*D478","v":{"v":0,"d":"0.00 €"}}]
[null,"Étapes : ouverture de la fouille ; fourniture et mise en place du poteau à ailettes ; fourniture et mise en place de déblais damés.\nPrécisions : type de poteau () et nombre () ; type de déblais ().",{"$nulls":3},{"$f":"IF(F478<>0,\"A\",0)","v":0}]
[null,"Clôture souple métallique","ml",null,null,{"$f":"E480*D480","v":{"v":0,"d":"0.00 €"}}]
[null,"Étapes : installation préalable des poteaux (non comprise) ; fourniture et boulonnage des jambes de force ; fourniture et mise en place des fils de tension, tendeurs ; fourniture et mise en place du grillage avec barre de tension et agrafes.\nPrécisions : type de clôture ().",{"$nulls":3},{"$f":"IF(F480<>0,\"A\",0)","v":0}]
["PC","Vérification de la bonne tension des fils",{"$nulls":3},{"$f":"IF(F480<>0,\"A\",0)","v":0}]
[null,"Clôture souple semi-rigide","ml",null,null,{"$f":"E483*D483","v":{"v":0,"d":"0.00 €"}}]
[null,"Étapes : installation préalable des poteaux (non comprise) ; fourniture et boulonnage des jambes de force ; fourniture et mise en place des fils de tension, tendeurs ; fourniture et mise en place du grillage avec barre de tension et agrafes/poteaux tubulaires à crémaillère.\nPrécisions : type de clôture ().",{"$nulls":3},{"$f":"IF(F483<>0,\"A\",0)","v":0}]
["PC","Vérification de la bonne tension des fils",{"$nulls":3},{"$f":"IF(F483<>0,\"A\",0)","v":0}]
[null,"Clôture par panneaux de treillis soudés métalliques","ml",null,null,{"$f":"E486*D486","v":{"v":0,"d":"0.00 €"}}]
[null,"Étapes : installation des poteaux à l'avancement (non comprise) ; fourniture et mise en place des panneaux, avec maintiens.\nPrécisions : type de panneaux ().",{"$nulls":3},{"$f":"IF(F486<>0,\"A\",0)","v":0}]
[null,"Clôture par panneaux rigides","ml",null,null,{"$f":"E488*D488","v":{"v":0,"d":"0.00 €"}}]
[null,"Étapes : installation des poteaux à l'avancement (non comprise) ; fourniture et mise en place des panneaux, avec maintiens.\nPrécisions : type de panneaux ().",{"$nulls":3},{"$f":"IF(F488<>0,\"A\",0)","v":0}]
[null,"Lisse","ml",null,null,{"$f":"E490*D490","v":{"v":0,"d":"0.00 €"}}]
[null,"Étapes : installation préalable des poteaux (non comprise) ; fourniture et mise en place des lisses.\nPrécisions : type de lisses ().",{"$nulls":3},{"$f":"IF(F490<>0,\"A\",0)","v":0}]
[null,"Echalas et fils","ml",null,null,{"$f":"E492*D492","v":{"v":0,"d":"0.00 €"}}]
[null,"Étapes : installation préalable des poteaux/piquets (non comprise) ; fourniture et mise en place des fils.\nPrécisions : type de fils ().",{"$nulls":3},{"$f":"IF(F492<>0,\"A\",0)","v":0}]
[null,"Fascine","ml",null,null,{"$f":"E494*D494","v":{"v":0,"d":"0.00 €"}}]
[null,"Étapes : installation préalable des poteaux/piquets (non comprise) ; fourniture et mise en place des gaulettes.\nPrécisions : type de gaulettes ().",{"$nulls":3},{"$f":"IF(F494<>0,\"A\",0)","v":0}]
[null,"Plaque de soubassement","ml",null,null,{"$f":"E496*D496","v":{"v":0,"d":"0.00 €"}}]
[null,"Étapes : drainage éventuel ; fourniture et installation de plaques de soubassement.\nPrécisions : type de plaque () ; profondeur le cas échéant ().",{"$nulls":3},{"$f":"IF(F496<>0,\"A\",0)","v":0}]
[null,"Protection ","ml",null,null,{"$f":"E498*D498","v":{"v":0,"d":"0.00 €"}}]
[null,"Étapes : drainage éventuel ; fourniture et installation d'éléments de protection.\nPrécisions : type de protection () ; profondeur le cas échéant ().",{"$nulls":3},{"$f":"IF(F498<>0,\"A\",0)","v":0}]
["PC","Vérification de l'alignement de la clôture, du nettoyage du site\nRéception du chantier",{"$nulls":3},{"$f":"IF(F471<>0,\"A\",0)","v":0}]
[null,"Fermetures/ouvrants",{"$nulls":3},{"$f":"IF(SUM(F502:F513)<>0,\"A\",0)","v":0}]
[null,"Portail/portillon pivotant","UNITE",null,null,{"$f":"E502*D502","v":{"v":0,"d":"0.00 €"}}]
[null,"Étapes : ouverture de la fouille et damage ; fourniture et coulage du béton pour sceller les piliers ; fourniture et pose des ouvrants et accessoires avec réglage.\nPrécisions : dosage du béton () kg/m3 ; profondeur () ; type de pilliers () ; type d'ouvrants ().",{"$nulls":3},{"$f":"IF(F502<>0,\"A\",0)","v":0}]
[null,"Version motorisée","UNITE",null,null,{"$f":"E504*D504","v":{"v":0,"d":"0.00 €"}}]
[null,"Précisions : type de motorisation et mise en œuvre ().",{"$nulls":3},{"$f":"IF(F504<>0,\"A\",0)","v":0}]
["PC","Vérification : des niveaux et alignements ; des parties mobiles, boulonnées ou vissées ; des fixations et réglages.",{"$nulls":3},{"$f":"IF(F502<>0,\"A\",0)","v":0}]
[null,"Portail coulissant sur rail/autoportant","UNITE",null,null,{"$f":"E507*D507","v":{"v":0,"d":"0.00 €"}}]
[null,"Étapes : décaissement ; fourniture et pose du coffrage, des fers et des fourreaux ; fourniture et coulage du béton et fourniture et pose du rail/poteau/platines ; fourniture et pose des ouvrants et accessoires avec réglage.\nPrécisions : dosage du béton () kg/m3 ; profondeur () ; type d'ouvrants () ; type de motorisation et mise en œuvre ().",{"$nulls":3},{"$f":"IF(F507<>0,\"A\",0)","v":0}]
["PC","Vérification : des niveaux et alignements ; des parties mobiles, boulonnées ou vissées ; des fixations et réglages.",{"$nulls":3},{"$f":"IF(F507<>0,\"A\",0)","v":0}]
[null,"Barrière","UNITE",null,null,{"$f":"E510*D510","v":{"v":0,"d":"0.00 €"}}]
[null,"Étapes : fourniture et pose de barrière.\nPrécisions : type de barrière ().",{"$nulls":3},{"$f":"IF(F510<>0,\"A\",0)","v":0}]
[null,"Version motorisée","UNITE",null,null,{"$f":"E512*D512","v":{"v":0,"d":"0.00 €"}}]
[null,"Précisions : type de motorisation et mise en œuvre ().",{"$nulls":3},{"$f":"IF(F512<>0,\"A\",0)","v":0}]
[]
[]
["Travaux de réalisation de bassins d'ornement",{"$nulls":4},{"$f":"IF(F518<>0,\"A\",0)","v":0}]
[]
[null,"Réalisation d'un bassin d'ornement","FORFAIT",null,null,{"$f":"E518*D518","v":{"v":0,"d":"0.00 €"}}]
[null,"Étapes : terrassements et fond de forme ; drainage éventuel ; fourniture et réalisation de l'étanchéité ; fourniture et mise en place de jeux d'eau/cascades éventuels ; fourniture et mise en oeuvre des canalisations et racordement ; fourniture et mise en oeuvre des pompes et systèmes de filtration ; fourniture de poissons éventuels ; fourniture et réalisation de mise en sécurité éventuelle ; fourniture et mise en place de l'éclairage éventuel.\nPrécisions : type de drainage éventuel () ; type d'étanchéité et réalisation () ; type de jeux d'eau éventuels () ; type de canalisations/fourreaux/assainissement () ; type de pompes et systèmes de filtration et réalisation () ; type de poisson () éventuels ; type d'éclairage éventuel () ; matériel utilisé () ; plantations non incluses."]
["PC","Information du client des démarches nécessaires et la législation sur la sécurité\nContrôle de l'adaptation du systéme de filtration et de pompe au bassin\nContrôle de la conformité et de l'état du bassin si préfabriqué / Contrôle des matériaux \nContrôle du niveau du bassin\nContrôle des conditions optimales de polymérisation de la résine de polyester (le cas échéant)\nControle de l'état de la bache et du travail de pose (le cas échéant)\nContrôle du système de filtration\nVérification de l'état de santé des poissons choisis (le cas échéant)\nVérification du systéme de canalisation\nRéception du chantier et délivrance des conseils d'entretien",{"$nulls":3},{"$f":"IF(F518<>0,\"A\",0)","v":0}]
[]
[]
["Travaux des dispositifs d'éclairage",{"$nulls":4},{"$f":"IF(MAX(F525:F528)<>0,\"A\",0)","v":0}]
[]
[null,"Tranchée pour éclairage","ml / mᵌ",null,null,{"$f":"E525*D525","v":{"v":0,"d":"0.00 €"}}]
[null,"Étapes : ouverture de la tranchée et évacuation des déblais éventuelle ; fourniture et mise en place du lit de pose en sable ; fourniture et mise en place des cables, fourreaux et filets avertisseurs ; fourniture et mise en place de l'enrobage en sable ; fourniture/réutilisation et mise en place du remblaiement.\nPrécisions : profondeur et largeur de la tranchée () ; type de matériaux utilisés () ; type de cablage/fourreaux ().",{"$nulls":3},{"$f":"IF(F524<>0,\"A\",0)","v":0}]
[null,"Élément d'éclairage (scellé)","UNITE",null,null,{"$f":"E527*D527","v":{"v":0,"d":"0.00 €"}}]
[null,"Étapes : ouverture de la fouille et damage ; fourniture et coulage du béton pour sceller l'élément/la platine ; fourniture et pose de l'élément ; fourniture et mise en place du câblage ; raccordement.\nPrécisions : dosage du béton () kg/m3 ; profondeur () ; type d'élément () ; type de câblage ().",{"$nulls":3},{"$f":"IF(F527<>0,\"A\",0)","v":0}]
[]
[]
["Déchets",{"$nulls":4},{"$f":"IF(MAX(F533:F535)<>0,\"A\",0)","v":0}]
[]
[null,"Tri et évacuation de déchets","m3/Tonne",null,null,{"$f":"E533*D533","v":{"v":0,"d":"0.00 €"}}]
[null,"Tri et évacuation des déchets de type () vers un point de collecte (raison sociale, adresse et type d'installation).",{"$nulls":3},{"$f":"IF(F533<>0,\"A\",0)","v":0}]
[null,"Tri et évacuation de déchets","m3/Tonne",null,null,{"$f":"E535*D535","v":{"v":0,"d":"0.00 €"}}]
[null,"Tri et évacuation des déchets de type () vers un point de collecte (raison sociale, adresse et type d'installation).",{"$nulls":3},{"$f":"IF(F535<>0,\"A\",0)","v":0}]
[null,"Tri et évacuation de déchets","m3/Tonne",null,null,{"$f":"E537*D537","v":{"v":0,"d":"0.00 €"}}]
[null,"Tri et évacuation des déchets de type () vers un point de collecte (raison sociale, adresse et type d'installation).",{"$nulls":3},{"$f":"IF(F537<>0,\"A\",0)","v":0}]
[null,"Déchets valorisés sur site","m3/Tonne",null,null,{"$f":"E539*D539","v":{"v":0,"d":"0.00 €"}}]
[]
[]
["Prix pour mémoire",{"$nulls":4},{"$f":"IF(MAX(F543:F545)<>0,\"A\",0)","v":0}]
[{"$nulls":5},{"$f":"E543*D543","v":{"v":0,"d":"0.00 €"}}]
[{"$nulls":5},{"$f":"E544*D544","v":{"v":0,"d":"0.00 €"}}]
[{"$nulls":5},{"$f":"E545*D545","v":{"v":0,"d":"0.00 €"}}]
[]
[null,null,"Base HT","Taux TVA","Montant TVA"]
[null,null,{"$f":"SUMIF(G128:G528,\"20%\",F128:F528)","v":{"v":0,"d":"0.00 "}},{"v":0.2,"d":"20.0%"},{"$f":"C548+(C548*D548)","v":{"v":0,"d":"0.00 €"}}]
[null,null,{"$f":"SUMIF(G128:G528,\"10%\",F128:F528)","v":{"v":0,"d":"0.00 "}},{"v":0.1,"d":"10.0%"},{"$f":"C549+(C549*D549)","v":{"v":0,"d":"0.00 €"}}]
[null,null,{"$f":"SUMIF(G128:G528,\"5,5%\",F128:F528)","v":{"v":0,"d":"0.00 "}},{"v":0.055,"d":"5.5%"},{"$f":"C550+(C550*D550)","v":{"v":0,"d":"0.00 €"}}]
[null,null,{"$f":"SUMIF(G128:G528,\"0%\",F128:F528)","v":{"v":0,"d":"0.00 "}},{"v":0,"d":"0.0%"},{"v":0,"d":"0.00 €"}]
[]
[{"$nulls":3},"Total HT",{"$f":"SUM(C548:C551)","v":{"v":0,"d":"0.00 €"}}]
[{"$nulls":3},"Total TVA",{"$f":"SUM(E548:E551)","v":{"v":0,"d":"0.00 €"}}]
[{"$nulls":3},"Total TTC",{"$f":"E554+E553","v":{"v":0,"d":"0.00 €"}}]
[]
[null,null,"Net à payer en Euros",null,{"$f":"E555","v":{"v":0,"d":"0.00 €"}}]
[]
[]
[null,null,"bouton_macro"]
{"$rows_empty":217}
[null,null,"NE PAS MODIFIER !"]
[null,null,"TVA"]
[null,null,{"v":0.2,"d":"20.0%"}]
[null,null,{"v":0.1,"d":"10.0%"}]
[null,null,{"v":0.055,"d":"5.5%"}]
[null,null,{"v":0,"d":"0.0%"}]

{"sheet":"Devis final","index":1,"n_rows":214,"n_cols":7,"rows_kept":214,"merged":[[0,0,7,6],[8,0,8,6],[9,0,13,1],[9,2,13,6],[14,0,26,6],[27,0,28,6],[30,7,30,22],[43,4,43,5],[45,0,94,6],[95,0,95,6],[96,0,144,1],[96,2,144,6],[145,0,194,1],[145,2,194,6],[195,0,212,1],[195,2,212,6],[213,0,237,6]]}
["Nom de l’entreprise du paysage\nForme sociale et capital de la société\nNuméro siren et Greffe de rattachement\nSiège social\n\nN° de TVA intracommunautaire\nTéléphone / Fax\nEmail\n\n\n\n"]
{"$rows_empty":7}
["DEVIS"]
[null,null,"Identification du client (nom, adresse)\nNom de l’interlocuteur\nNuméro de TVA Intracommunautaire (si professionnel)\n\nDate et lieu d’émission du devis"]
[]
[]
[]
[]
["Référence du dossier\nNuméro du devis\nNuméro du client\nNom de l’interlocuteur dans l’entreprise du paysage (obligatoire si Qualicert)\nAdresse du lieu d’intervention (A préciser)\n\nPériode de validité du devis à compter de sa date d’émission (A préciser)\nDevis payant : montant (si c’est le cas)\n\n(Si client particulier) Rappel : Le vendeur remet gratuitement un devis personnalisé au consommateur à qui il propose une prestation ou un ensemble de prestations dont le prix total est supérieur ou égal à 100 € TTC ou au consommateur qui lui en fait la demande."]
{"$rows_empty":12}
["Intitulé exacte de la prestation :\n\nExemples :\n\n1/ – Pose d’un portail en aluminium (référence XXXXX ) blanc (référence XXXXX)  - mesures - avec réalisation des opérations suivantes : ragréage, pose d’une dalle, pose des poteaux, fourniture du portail et des matériaux….., (NB : si portail acheté sur catalogue, joindre au dossier la photo et référence du portail signé par le client).\n\n2/ – Pose d’un portail en aluminium - mesures - avec réalisation des opérations suivantes :\nragréage, pose d’une dalle, pose des poteaux, sans fourniture du portail…. - La pose du portail se fait sous réserve de la fourniture de la notice de montage"]
[]
[{"$nulls":6},{"$f":"MATCH(\"LIMITE\",A1:A899,0)","v":32}]
["N°","Désignation","Unité","Quantité","PU HT","Montant HT","Taux TVA"]
["LIMITE"]
[]
[{"$nulls":4},"Base HT","Taux TVA","Montant TVA"]
[{"$nulls":4},{"v":0,"d":"0.00 "},{"v":0.2,"d":"20.0%"},{"$f":"E35+(E35*F35)","v":{"v":0,"d":"0.00 €"}}]
[{"$nulls":4},{"v":0,"d":"0.00 "},{"v":0.1,"d":"10.0%"},{"$f":"E36+(E36*F36)","v":{"v":0,"d":"0.00 €"}}]
[{"$nulls":4},{"v":0,"d":"0.00 "},{"v":0.055,"d":"5.5%"},{"$f":"E37+(E37*F37)","v":{"v":0,"d":"0.00 €"}}]
[{"$nulls":4},{"v":0,"d":"0.00 "},{"v":0,"d":"0.0%"},{"v":0,"d":"0.00 €"}]
[]
[{"$nulls":5},"Total HT",{"$f":"SUM(E35:E38)","v":{"v":0,"d":"0.00 €"}}]
[{"$nulls":5},"Total TVA",{"$f":"SUM(G35:G38)","v":{"v":0,"d":"0.00 €"}}]
[{"$nulls":5},"Total TTC",{"$f":"G41+G40","v":{"v":0,"d":"0.00 €"}}]
[]
[{"$nulls":4},"Net à payer en EUROS",null,{"$f":"G42","v":{"v":0,"d":"0.00 €"}}]
[]
["Conditions de vente / livraison / prestation de services : (À préciser)\n\n- Modalités et modes de paiement : Paiement possible par : Chèque, carte de paiement, prélèvement, virement, titre interbancaire de paiement (A définir). Il est possible de prévoir : un acompte et/ou un versement à chaque étape de la prestation. En cas d’acompte par exemple : 30 % de la somme TTC totale sera versée par le client à la signature du présent devis. A défaut, l’entreprise du paysage ne débutera pas ses prestations. L’acompte, n’étant pas une possibilité de dédit, ne pourra jamais faire l’objet d’un remboursement.\n\n- Escompte pour paiement anticipé : (si pas d’escompte indiquer néant) – ne concerne que les professionnel).\n\n- Date de paiement : (A préciser)\n\n- Pénalités de retard : % des pénalités + 40 € au titre des frais de recouvrement (uniquement entre professionnels)\n\n- Garanties : exemple : reprise des végétaux  - Nature et durée\n\n- Assurances : Nature et durée (A préciser) exemple : « Assurance décennale obligatoire souscrite auprès de …………………… (nom de de l’assureur) ………………………………………………………. (adresse postale), téléphone : ………………………, valable en (secteur géographique couvert) ».\n\n- Le présent devis est réalisé sous réserve des constatations qui seront réalisées lors de la mise en œuvre des prestations. En cas de nécessité de modification des prestations, l’entreprise du paysage en informera son client, pour formaliser un nouveau devis. Les travaux seront suspendus pendant cette période de préparation de ce nouveau devis.\n\n- Tout plan et étude remis dans le cadre des échanges entre l’entreprise du paysage et son client / prospect ne pourront être exploités, divulgués ou reproduits, en partie ou en totalité, que par l’entreprise du paysage émettrice desdits documents. A défaut, le client / prospect s’engage à verser une indemnité pour toute utilisation totale ou partiel des documents équivalente à 20% du montant TTC du devis de l’entreprise du paysage liés aux plans ou études produits. A défaut de devis, l’entreprise du paysage transmettra une facture basée sur le coût horaire.\n\nLa signature du présent devis vaut acceptation des conditions générales figurant au dos et qui sont signées par l’entreprise du paysage et son client.\n\n\n\nSignature de l’entreprise du paysage                                            Signature du client professionnel\n                                                                                                                      Date\n                                                                                                                      Bon pour accord\n\n\n                                                                                             Ou\n                                                                                         \n\nSignature de l’entreprise du paysage                                              Signature du client particulier\n                                                                                                                        Devis reçu avant l’exécution des travaux*\n                                                                                                                        Date*\n                                                                                                                        Bon pour accord*\n\n\n* mentions manuscrites obligatoires"]
{"$rows_empty":49}
["CONDITIONS GÉNÉRALES DE VENTE ET DE PRESTATION DE SERVICES"]
["Le présent contrat est conclu entre un professionnel  ………….………………….............................................................................................…… \nsis ……. rue …………………....................................................... ville …...............…...…\nimmatriculé au RCS de .…..…............... sous le numéro ……..…..............................\nou un consommateur M. ou Mme ………....................................…… domicilié(e) au\n……..… rue ……………………….........................................…… ville …………..............\nayant passé la commande (ci-après « le CLIENT »)\net …………………………………………….……………….................................................\nsis …… rue ………………………………………………….....… ville .............................\nimmatriculée au RCS de …….....……… sous le numéro ……….......………………\n(ci-après « le Prestataire »).\n\nLes présentes conditions générales (CGV) s’appliquent à tous les contrats de ventes de produits et de prestations de services d’aménagement paysagers conclus et/ou exécutés par le prestataire, en France. Elles remplacent et annulent les conditions générales dont la date d’édition est antérieure et seront remplacées par toute édition postérieure. Les parties conviennent que leurs relations seront exclusivement régies par les présentes, quelles que soit les clauses pouvant figurer sur les documents du client, et notamment ses conditions générales d’achat. Toute modification des présentes conditions générales souhaitée par le CLIENT doit faire l’objet d’une demande écrite de sa part au plus tard lors de l’acceptation du devis et doit en outre être acceptée par le prestataire par écrit pour pouvoir lui être opposable. En cas de conflit entre les présentes conditions générales et les conditions particulières portées sur les devis ou tout autre document accepté par les deux parties, les conditions particulières primeront.\n\n1) Loi applicable – Tribunaux compétents \nLe présent contrat et les opérations qui en découlent sont soumis à la loi française. Les CGV sont rédigées en langue française. Dans le cas où elles seraient traduites en une ou plusieurs langues, seul le texte français ferait foi en cas de litige.\nPour les clients professionnels, il est convenu que le tribunal du lieu du siège social de la société prestataire sera seul compétent en cas de litiges auxquels le présent contrat pourrait donner lieu, concernant tant sa validité, son interprétation, son exécution, sa résiliation, leurs conséquences et leurs suites. \nPour les CLIENTS consommateurs, les litiges qui n’auraient pas pu être résolus à l’amiable seront soumis aux tribunaux compétents dans les conditions de droit commun.\n\n2) Devis\nLe prestataire établit un devis écrit répondant au besoin formulé par le CLIENT. \nLe devis est élaboré gratuitement sauf lorsque le CLIENT aura été informé préalablement à son élaboration que celui-ci est payant.\nSauf indication contraire dans le devis, celui-ci :\n     -     est valable . . . . . mois à compter de la date de son établissement par le prestataire et n’inclut que les prestations et produits qui y sont décrits.\n     -     est établi sur la base du taux de TVA applicable au moment de la signature ; toute variation de ce taux découlant des dispositions législatives ou règlementaires à venir sera répercutée au CLIENT..\n     -     n’inclut pas les prestations préparatoires et accessoires aux prestations et produits décrits telles que les études, analyses des sols, etc.\n     -     s’entend pour l’exécution des travaux qui y sont décrits dans des conditions normales, à l’exclusion de prestations imposées par des conditions imprévues (nécessité de briser des enrochements, de dépolluer des sols, etc.)\n     -     n’inclut pas les demandes d’autorisation exigées par des règles d’urbanisme ou des règlements de copropriété ou enfin par mesure de sécurité. Il appartient donc au CLIENT de s’informer et de réaliser toute formalité pour obtenir les autorisations, sous sa seule responsabilité.\n\n3) Commande – Formation du contrat\nLe contrat est définitivement formé dès l’acceptation, sans réserve ni modification, du devis par le CLIENT. Toute demande de modification d’un devis, faite par observation sur celui-ci ou par tout autre moyen, constituera un obstacle à la formation du contrat sur la base du devis modifié et donnera lieu à l’établissement, par le prestataire, d’un devis modificatif. Le contrat ne sera alors valablement formé que si le devis modificatif est accepté par le CLIENT. L’acceptation du devis se matérialise par la signature du CLIENT.\n\n4) Remise des plans\nAvant l’exécution des travaux, le CLIENT s’engage à remettre au prestataire les plans des réseaux et des ouvrages enterrés. Pour tout dégât causé aux dits réseaux ou ouvrages non ou mal signalés par le CLIENT, la responsabilité du prestataire ne pourra en aucun cas être engagée.",null,"5) Prix - Facturation – Paiement\n     1.     Les produits et services proposés par le prestataire sont fournis aux tarifs en vigueur selon le devis établi par lui. Les prix sont exprimés en euros, HT et TTC.\n     2.     Sauf accord contraire dans le devis, un acompte de 30% du prix qui y est stipulé est versé par le CLIENT lors de l’acceptation de celui-ci. La commande ne recevra exécution qu’après l’encaissement de cette somme par le prestataire.\nEn cas d’annulation de la commande par le CLIENT après son acceptation par le prestataire moins de ……. jours avant la date prévue pour la fourniture des services commandés, pour quelque raison que ce soit hormis la force majeure, l’acompte versé sera de plein droit acquis au prestataire et ne pourra donner lieu à un quelconque remboursement. \nLe solde du prix est payable à la réception des travaux ou à la livraison, à moins que les parties aient convenu dans le devis de toute autre modalité de paiement.Les paiements seront effectués par chèque, en espèce ou virement, sauf accord contraire dans le devis. Cependant les règlements ayant pour objet le paiement de tout ou partie d'une dette de plus de 1000 € TTC doivent être faits par chèque barré, virement ou carte de crédit ou de paiement (L112-6 code monétaire).\n     3.     Conformément à l’article L.441-3 du code de commerce, les factures seront adressées au CLIENT PROFESSIONNEL au plus tard lors de la réception des travaux et/ou produits.\n     4.     Entre professionnels, en cas de retard de paiement ou d’encaissement de tout ou partie du prix, un intérêt de retard égal au taux d’intérêt de la Banque Centrale Européenne majoré de 10 points de pourcentage sera dû sur la totalité des sommes TTC impayées dès la survenance de l’échéance figurant sur la facture et sans qu’une mise en demeure préalable ne soit nécessaire pour cela (article L. 441-6 du code de commerce).\nTout retard de paiement entraîne en outre, de plein droit, sans qu’il soit besoin de mise en demeure : l’exigibilité de la totalité des créances du prestataire, même non échues, ainsi que le droit pour le prestataire de suspendre toutes les livraisons et tous les travaux en cours jusqu’à complet paiement et la possibilité pour le prestataire d’exiger un paiement intégral à la commande pour les affaires à venir.\nEntre les professionnels, le délai de règlement des sommes dues est fixé au 30ème jour suivant la date de réception des marchandises ou d’exécution de la prestation demandée (article L441-6 du code du commerce). Tout retard de paiement entrainera le paiement d’une indemnité forfaitaire de 40 euros pour frais de recouvrement.\n     5.     Pour les CLIENTS PARTICULIERS/CONSOMMATEURS, conformément à l’article 1er de l’arrêté n°83-50A du 3 octobre 1983, le prestataire transmettra ou remettra au client une note reprenant les prestations réalisées et leur montant.\n\n6) Réserve de propriété\nTous les produits remis au CLIENT en exécution du contrat restent la propriété du prestataire jusqu’à complet encaissement de leur prix. Les risques (perte, vol, détérioration, etc.) relatifs aux dits produits sont cependant transférés au CLIENT dès leur livraison, de même que l’obligation de réparer les dommages qu’ils pourraient causer aux biens et aux personnes.\n\n7) Délais d’exécution\n     1.     Les retards ne pourront pas être invoqués par les clients professionnels pour justifier l’annulation de la commande ou pour ouvrir droit à des retenues sur le prix ou au paiement de dommages intérêts par le prestataire.\n     2.     Conformément à l’article L.111-1 du code de la consommation, dans tout contrat ayant pour objet la vente d’un bien meuble ou la fourniture d’une prestation de service à un consommateur, le prestataire doit, lorsque la livraison de bien ou la fourniture de la prestation n’est pas immédiate, indiquer la date limite à laquelle il s’engage à livrer le bien ou à exécuter la prestation. A défaut d’indication, le prestataire livre le produit ou exécute la prestation sans retard injustifié et au plus tard 30 jours après la conclusion du contrat (article L.216-1 du Code de la consommation).\nDans les conditions prévues à l’article L.216-2 du code de la consommation, les clients consommateurs pourront dénoncer le contrat dont le prix convenu en TTC excède les seuils fixés par voie réglementaire, par lettre recommandée avec accusé de réception ou par un écrit sur un autre support durable si, après avoir enjoint, selon les mêmes modalités, le prestataire d’effectuer la livraison ou de fournir le service dans un délai supplémentaire raisonnable, ce dernier ne s’est pas exécuté dans ce délai sauf cas de force majeure. Le contrat est considéré comme rompu à la réception par le prestataire de la lettre du consommateur l’informant de la dénonciation, à moins que la livraison soit intervenue entre l’envoi et la réception de la lettre. Les sommes versées par le CLIENT lui seront alors restituées au plus tard dans les 14 jours qui suivent la "]
{"$rows_empty":48}
["date de dénonciation du contrat, à l’exclusion de toute indemnisation ou retenue.\n\n8) Réception des travaux et produits\nA défaut de stipulation contraire dans le devis, la prise de possession des travaux et/ou des produits vaut réception, les éventuelles réserves étant formulées comme suit. En l’absence de procès verbal de réception, les travaux et/ou produits sont présumés être conformes à défaut de réserve formulée par lettre recommandée avec accusé de réception dans un délai de 15 jours après la réception pour les travaux et 5 jours après la livraison pour les produits. En présence d’un procès verbal de réception, les travaux et/ou produits sont présumés être conformes, à défaut de réserve formulée sur ce document.\n\n9) Responsabilité - Force majeure\n     1.     Le prestataire est tenu d’une obligation de moyen et non de résultat, sauf lorsque cela est prévu par une disposition légale impérative.\n     2.     En ce qui concerne la responsabilité du fait des produits défectueux, le prestataire ne pourra voir sa responsabilité engagée au titre des dommages causés aux biens qui ne sont pas utilisés par les clients professionnels principalement pour leur usage ou leur consommation privée (article 1386-15 du code civil).\n     3.     Le prestataire sera exonéré de toute responsabilité lorsqu’il aura été empêché d’exécuter en tout ou partie ses obligations, notamment en matière de délais, en raison d’un cas de force majeur. Les parties conviennent que seront notamment assimilés à des cas de force majeure les intempéries, les catastrophes naturelles, les sécheresses, les inondations, les grèves ou le manque de main d’œuvre, sauf lorsque de telles assimilations sont interdites par des dispositions légales d’ordre public.\n     4.     Pour garantir les conséquences pécuniaires d’une éventuelle mise en cause de sa responsabilité, le prestataire a souscrit une assurance dont les garanties et capitaux figurent sur l’attestation, dont il pourra sur simple demande du CLIENT lui en être remis un exemplaire. \n     5.     Le CLIENT déclare avoir souscrit toutes assurances utiles pour couvrir tout sinistre direct et indirect pouvant affecter les biens.\n\n10) Garanties légale et contractuelle\n     1.     Le prestataire n’accorde aucune garantie contractuelle automatique\n     2.     Cependant, les végétaux fournis et plantés par le prestataire peuvent faire l’objet d’une garantie contractuelle de reprise selon un prix à convenir entre les parties. Cette garantie s’applique jusqu’au 1er juillet de l’année civile suivant celle au cours de laquelle les végétaux ont été plantés.\nCette garantie sera exclue :\n     -     si l’entretien à la charge du CLIENT n’a pas été correctement effectué, notamment l’arrosage, le bassinage, la vérification des tuteurs et des haubans, les traitements parasitaires, le désherbage des massifs, etc.\n     -     en cas de vandalisme, vol, gel, sécheresse, inondation, grêle, orage violent et neige, produits désherbants non-appropriés.\n     -     si les végétaux n’ont pas été fournis.\n     3.     De plus, le CLIENT bénéficie de la garantie contractuelle éventuellement offerte par les fournisseurs des produits que le prestataire lui a vendus.\n     4.     A l’égard des clients consommateurs, les produits fournis par le prestataire bénéficient de plein droit et sans paiement complémentaire, conformément aux dispositions légales ;\n– de la garantie légale de conformité pour les produits apparemment défectueux, abîmés ou endommagés ou ne correspondant pas à la commande, dans les conditions de l'article L. 217-4 et suivants du code de la consommation ;\n– de la garantie légale contre les vices cachés provenant d’un défaut de matière, de conception ou de fabrication affectant les produits livrés et les rendant impropres à leur utilisation, dans les conditions prévues aux articles 1641 et suivants du code civil.\n_______________________________________________________________\nPour agir en garantie légale de conformité, le CLIENT :\n- bénéficie d'un délai de deux ans à compter de la délivrance du produit pour agir ;\n- peut choisir entre la réparation ou le remplacement du produit, sous réserve des conditions de coût prévues par l'article L. 217-9 du code de la consommation ;\n- est dispensé de rapporter la preuve de l'existence du défaut de conformité du produit durant les vingt-quatre mois suivant la délivrance du Produit.\nLa garantie légale de conformité s'applique indépendamment de la garantie commerciale éventuellement consentie.\nPour la garantie des vices cachés, si le CLIENT décide de la mettre en œuvre, il peut choisir entre la résolution de la vente ou une réduction du prix de vente conformément à l'article 1644 du code civil.\n______________________________________________________________\n",null,"La responsabilité du prestataire ne saurait être engagée dans les cas suivants :\n- non-respect de la législation du pays dans lequel les produits sont livrés, qu’il appartient au client de vérifier ;\n– en cas de mauvaise utilisation, d’utilisation à des fins professionnelles, négligence ou défaut d’entretien de la part du CLIENT, comme en cas d’usure normale du produit, d’accident ou de force majeure.\nLa garantie du prestataire est, en tout état de cause, limitée au remplacement ou au remboursement des produits non conformes ou affectés d’un vice.\n     6.     Si le prestataire exécute des travaux entrant dans le cadre de l’article 1792 du code civil, ces travaux sont couverts par la garantie décennale.\n\n11) Propriété intellectuelle\n1. Le prestataire reste propriétaire de tous les droits de propriété intellectuelle sur les études, dessins, modèles, prototypes, etc., réalisés (même à la demande du CLIENT) en vue de la fourniture des services au CLIENT.\n2. Le CLIENT s’interdit donc toute reproduction ou exploitation desdites études, dessins, modèles et prototypes, etc., sans l’autorisation expresse, écrite et préalable du prestataire qui peut la conditionner à une contrepartie financière.\n\n12) Droit de rétractation\n1. Pour les contrats conclus hors établissement tels que définis à l’article L 221-1 du Code de la Consommation (c’est-à-dire les contrats souscrits dans tout lieu où le prestataire n’exerce pas son activité habituelle ou s’il l’exerce, si le client a été sollicité dans un lieu différent, ou lors d’une excursion ayant pour but ou effet de promouvoir les biens et/ou services du prestataire) entre le prestataire et un CLIENT particulier consommateur, le CLIENT dispose, conformément à la loi, d'un délai de rétractation de 14 jours à compter de la conclusion du contrat ou de la réception du produit pour exercer son droit de rétractation auprès du prestataire et annuler sa commande, sans avoir à justifier de motifs ni à payer de pénalité, à fin d'échange ou de remboursement, sauf si l'exécution des prestations a commencé, avec l'accord du Client et est pleinement réalisée, avant la fin du délai de rétractation et à condition que les produits soient retournés dans leur emballage d’origine et en parfait état dans les 14 jours suivant la notification de la décision de rétractation du CLIENT.\nLe droit de rétractation peut être exercé à l'aide du formulaire type de rétractation accompagnant le contrat, auquel cas un accusé de réception sur un support durable sera immédiatement communiqué au CLIENT par le prestataire, ou de toute autre déclaration, dénuée d'ambiguïté, exprimant la volonté de se rétracter.\nEn cas d'exercice du droit de rétractation dans le délai susvisé, seul le prix des services et/ou produits achetés et les frais de livraison sont remboursés. Les frais de retour sont à la charge du client, sauf si les produits sont livrés au moment de la conclusion du contrat et que ceux-ci ne peuvent pas être renvoyés normalement par voie postale en raison de leur nature.\nLe remboursement des sommes effectivement réglées par le CLIENT sera effectué dans un délai de 14 jours à compter de la réception des produits retournés ou pour une prestation de service, à compter de la réception, par le prestataire, de la notification de la rétractation du CLIENT.\n2. Le droit de rétractation s’applique sous réserve des exceptions mentionnées à l’article L.221-28 du code de la consommation.\n3. Dans le cas d’un contrat de prestation de services hors ceux visés à l’article L.221-28 du Code de la consommation, si le CLIENT a demandé de commencer la prestation pendant le délai de rétractation, il doit payer au PRESTATAIRE un montant proportionnel à ce qui lui a été fourni jusqu’au moment où il a informé le PRESTATAIRE de sa rétractation du présent contrat, par rapport à l’ensemble des prestations prévues par le contrat.\n\n13) Information précontractuelle - Acceptation des CGV\n1. Le CLIENT reconnaît avoir eu communication, préalablement à l’achat immédiat ou à la passation de sa commande, d’une manière claire et compréhensible, des présentes CGV et de toutes informations et renseignements visés aux articles L.111-1 et suivants du Code de la consommation et en particulier :\n- les caractéristiques essentielles du produit et/ou de la prestation de service ;\n- le prix des produits et/ou de la prestation de service et des frais annexes (livraison, par exemple) ;\n- en l’absence d’exécution immédiate du contrat, la date ou le délai auquel le prestataire s’engage à livrer le produit et/ou la prestation de service ;\n- les informations relatives à l’identité du prestataire, à ses coordonnées postales, téléphoniques et électroniques, et à ses activités, si elles ne ressortent pas du contexte ;\n- les informations relatives aux garanties légales et contractuelles et à leurs modalités de mise en œuvre ;\n- la possibilité de recourir à une médiation conventionnelle en cas de litige.\n2. Le fait pour un CLIENT particulier ou professionnel d’effectuer un achat ou de commander un produit et/ou une prestation de services emporte adhésion et "]
{"$rows_empty":49}
["acceptation pleine et entière des présentes CGV, ce qui est expressément reconnu par le CLIENT.\n\n14) Traitement des données\nLa réalisation des obligations prévues par le contrat liant les parties et la gestion de sa relation « client » conduisent le Prestataire à collecter les données à caractère personnel de ses clients. Les informations recueillies vous concernant font l’objet d’un traitement sous la responsabilité de :\nIndiquer la dénomination de l’entreprise et les informations légales (adresse du siège social, numéro RCS et lieu d’immatriculation le cas échéant, forme et capital social pour les sociétés), et le cas échéant, le nom du représentant légal\nLes données personnelles que vous communiquez au Prestataire sont destinées à la gestion des demandes, devis et commandes et à la constitution d’un fichier clientèle à des fins de prospection commerciale. Ces informations pourront également être conservées aux fins de preuve dans le respect des obligations légales et réglementaires (paiement, garantie, litige …).\nLes données collectées sont susceptibles d’être conservées pendant toute la durée de la relation commerciale et pendant 3 ans après cette dernière pour permettre la prospection commerciale.\nLe prestataire ne communique vos données à caractère personnel qu’à des destinataires habilités et déterminés. Les destinataires de vos données à caractère personnel sont les services concernés du prestataire.\nVous bénéficiez d’un droit d’accès, de rectification, de portabilité, d’effacement de celles-ci ou d’une limitation du traitement. Vous pouvez vous opposer au traitement des données vous concernant et disposez du droit de retirer votre consentement à tout moment en vous adressant à : ",null,"Mentionner les coordonnées de l’entreprise (adresse mail, adresse postale).\nVous disposez du droit d’introduire une réclamation auprès de la CNIL, 3 Place de Fontenoy - TSA 80715 - 75334 PARIS CEDEX 07, site Internet : www.cnil.fr \n\n15) Réclamations => à ajuster si l’entreprise a choisi un autre médiateur de la consommation.\nEn cas de conflit non résolu avec le PRESTATAIRE, le CLIENT consommateur peut formuler gratuitement ses réclamations auprès de l’Association des Médiateurs Européens http://www.mediationconso-ame.com (Médiation de la consommation AME, 11 Place Dauphine, 75001 Paris), dans les conditions prévues aux articles L.612-1 et suivants. En particulier, le CLIENT consommateur doit justifier avoir préalablement tenté de résoudre son litige directement auprès du PRESTATAIRE par une réclamation adressée par lettre recommandée avec accusé de réception. Le CLIENT dispose d’un délai d’un an à compter de sa réclamation écrite auprès du PRESTATAIRE pour introduire sa demande auprès du médiateur.\n\nFait le :                                                   à : \t\t\nSignature du Client                            Signature et tampon du Prestataire :"]
{"$rows_empty":17}
["Modèle de formulaire de rétractation pour les contrats hors établissement UNIQUEMENT tels que prévus à l’article 12 \nVeuillez compléter et renvoyer le présent formulaire uniquement si vous souhaitez vous rétracter du contrat.\n\nÀ l'attention de [le professionnel insère ici son nom, son adresse géographique et, lorsqu'ils sont disponibles, son numéro de télécopieur et son adresse électronique] :\n\nJe/nous (*) vous notifie/notifions (*) par la présente ma/notre (*) rétractation du contrat portant sur la vente du bien (*)/pour la prestation de services (*) ci-dessous :\n\nCommandé le (*)/reçu le (*) :\n\nNom du (des) consommateur(s) :\nAdresse du (des) consommateur(s) :\n\nSignature du (des) consommateur(s) (uniquement en cas de notification du présent formulaire sur papier) : […] »\n\nDate :\n\n\n\n\n(*) Rayez la mention inutile."]

{"sheet":"(aide - calcul de prix)","index":2,"n_rows":57,"n_cols":12,"rows_kept":57,"merged":[[0,0,0,11],[1,0,1,11],[3,2,3,3],[3,5,3,6],[3,9,3,11],[5,2,5,3],[7,2,7,3],[9,4,9,8],[9,9,9,11],[37,1,38,1],[37,2,37,3],[38,2,38,3],[40,5,41,5],[43,0,43,1],[43,7,43,8],[44,0,54,1],[45,7,45,8],[55,0,55,4],[56,0,56,4]]}
["Ce tableau vous permet de calculer vos prix selon la méthode décrite sur le site de l'Unep (suivez ce lien pour en savoir plus : http://www.lesentreprisesdupaysage.fr/base-documentaire/march%C3%A9s-priv%C3%A9s/savoir-calculer-ses-prix-unitaires).\nUne fois le calcul terminé, effacez les cases vertes pour réutiliser le tableau."]
["ÉTUDE DE PRIX"]
[]
[null,"N° du prix : ",null,null,"DÉSIGNATION DU PRIX :",{"$nulls":3},"Affaire :"]
[]
[null,"Date :",null,null,"UNITÉ :",null,"Quantité :"]
[]
[null,"Date prévisionnelle de réalisation :",{"$nulls":4},"Rendement journalier * :"]
[]
[{"$nulls":4},"Coûts Directs HT",{"$nulls":4},"DÉPENSES RÉALISÉES HT"]
["N°","DÉSIGNATION","Unité","Quantité\nDurée d'utilisation","Main d'œuvre PU","Matériaux et fourniture PU","Matériel PU","TOTAL TRAVAUX PROPRES **","TOTAL TRAVAUX S/TRAITÉS","Qté","P.U","TOTAL"]
[1,"Main d'œuvre"]
[{"$nulls":7},{"$f":"E13*D13","v":0},{"$nulls":3},{"$f":"K13*J13","v":0}]
[{"$nulls":7},{"$f":"E14*D14","v":0},{"$nulls":3},{"$f":"K14*J14","v":0}]
[{"$nulls":7},0,{"$nulls":3},0]
[{"$nulls":7},0,{"$nulls":3},0]
[{"$nulls":7},0,{"$nulls":3},0]
[{"$nulls":7},0,{"$nulls":3},0]
[2,"Matériaux et fournitures"]
[{"$nulls":7},{"$f":"F20*D20","v":0},{"$nulls":3},{"$f":"K20*J20","v":0}]
[{"$nulls":7},{"$f":"F21*D21","v":0},{"$nulls":3},{"$f":"K21*J21","v":0}]
[{"$nulls":7},{"$f":"F22*D22","v":0},{"$nulls":3},{"$f":"K22*J22","v":0}]
[{"$nulls":7},{"$f":"F23*D23","v":0},{"$nulls":3},{"$f":"K23*J23","v":0}]
[3,"Matériel"]
[{"$nulls":7},{"$f":"G25*D25","v":0},{"$nulls":3},0]
[{"$nulls":7},0,{"$nulls":3},0]
[{"$nulls":7},0,{"$nulls":3},0]
[{"$nulls":7},0,{"$nulls":3},0]
[{"$nulls":7},0,{"$nulls":3},0]
[{"$nulls":7},0,{"$nulls":3},0]
[4,"Sous-Traitance identifiée"]
[{"$nulls":8},{"$f":"F32*D32","v":0},null,null,0]
[{"$nulls":8},{"$f":"F33*D33","v":0},null,null,0]
[{"$nulls":8},{"$f":"F34*D34","v":0},null,null,0]
[{"$nulls":6},"COÛTS DIRECTS",{"$f":"SUM(H12:H34)","v":0},{"$f":"SUM(I32:I34)","v":0},null,null,{"$f":"SUM(L12:L34)","v":0}]
["N.B.","En cas de plantation, application d'un pourcentage de garantie de reprise sur les postes 1, 2 et 3"]
[]
[null,"TOTAL TRAVAUX PROPRES","Coûts indirects/CA (%) (1)",null,null,"Marge brute/CA (%) (1+2)",{"$f":"E38+E39","v":{"v":0,"d":"0%"}},{"$f":"H35*G38","v":0}]
[null,null,"Bénéfice/CA (%) (2)",null,null,"Coefficient de marge brute /Coûts directs (K)",{"$f":"100/(100-G38*100)","v":{"v":1,"d":"1.00"}},{"$f":"H35*G39","v":0}]
[]
[{"$nulls":5},"TOTAL TRAVAUX SOUS TRAITES IDENTIFIES","Bénéfice/coûts directs (%)",null,{"$f":"I35*H41","v":0}]
[{"$nulls":6},"Coefficient ",{"$f":"100/(100-H41*100)","v":{"v":1,"d":"1.00"}},{"$f":"I35*H42","v":0}]
[]
["OBSERVATIONS",{"$nulls":5},"PRIX DE VENTE  HT",{"$f":"I42+H39","v":{"v":0,"d":"0.00 €"}}]
[]
[{"$nulls":6},"PRIX UNITAIRE DE VENTE HT",{"$f":"H44/H6","v":{"$error":"#DIV/0!"}},null,"par",{"$f":"IF($F$6<>0,$F$6,\"\")","v":""}]
{"$rows_empty":9}
["Rendement journalier * : par homme ou par équipe pour une journée"]
["Total Travaux propres ** : Affectés à l'entreprise"]

{"sheet":"(aide - exemple de calcul)","index":3,"n_rows":56,"n_cols":12,"rows_kept":56,"merged":[[0,0,0,11],[2,2,2,3],[2,5,2,6],[2,9,2,11],[4,2,4,3],[6,2,6,3],[8,4,8,8],[8,9,8,11],[36,1,37,1],[36,2,36,3],[37,2,37,3],[39,5,40,5],[42,0,42,1],[42,7,42,8],[43,0,53,1],[44,7,44,8],[54,0,54,4],[55,0,55,4]]}
["ÉTUDE DE PRIX"]
[]
[null,"N° du prix : ",null,null,"DÉSIGNATION DU PRIX :","Engazonnement par placage",null,null,"Affaire :","M. et Mme MARTIN"]
[]
[null,"Date :","2018-10-12",null,"UNITÉ :","m²","Quantité :",200]
[]
[null,"Date prévisionnelle de réalisation :","Avril 2019",{"$nulls":3},"Rendement journalier * :",50]
[]
[{"$nulls":4},"Coûts Directs HT",{"$nulls":4},"DÉPENSES RÉALISÉES HT"]
["N°","DÉSIGNATION","Unité","Quantité\nDurée d'utilisation","Main d'œuvre PU","Matériaux et fourniture PU","Matériel PU","TOTAL TRAVAUX PROPRES **","TOTAL TRAVAUX S/TRAITÉS","Qté","P.U","TOTAL"]
[1,"Main d'œuvre"]
[null,"Chef de chantier","Jour",4,{"v":220,"d":"220.00"},null,null,{"$f":"E12*D12","v":{"v":880,"d":"880.00 "}},{"$nulls":3},{"$f":"K12*J12","v":0}]
[null,"Ouvrier qualifié","Jour",4,{"v":195,"d":"195.00"},null,null,{"$f":"E13*D13","v":{"v":780,"d":"780.00 "}},{"$nulls":3},{"$f":"K13*J13","v":0}]
[{"$nulls":7},0,{"$nulls":3},0]
[{"$nulls":7},0,{"$nulls":3},0]
[{"$nulls":7},0,{"$nulls":3},0]
[{"$nulls":7},0,{"$nulls":3},0]
[2,"Matériaux et fournitures"]
[null,"Terreau en sac de 80 l (Éts XX)","Sac",5,null,{"v":15.6,"d":"15.60"},null,{"$f":"F19*D19","v":{"v":78,"d":"78.00 "}},{"$nulls":3},{"$f":"K19*J19","v":0}]
[null,"Gazon de plaquage (Entreprise YY)","m²",220,null,{"v":4.5,"d":"4.50"},null,{"$f":"F20*D20","v":{"v":990,"d":"990.00 "}},{"$nulls":3},{"$f":"K20*J20","v":0}]
[null,"Décharge Déchets Verts (Ent. WW)","T",0.1,null,{"v":34,"d":"34.00"},null,{"$f":"F21*D21","v":{"v":3.4000000000000004,"d":"3.40 "}},{"$nulls":3},{"$f":"K21*J21","v":0}]
[{"$nulls":7},{"$f":"F22*D22","v":0},{"$nulls":3},{"$f":"K22*J22","v":0}]
[3,"Matériel"]
[null,"Camionnette","Jour",4,null,null,{"v":50,"d":"50.00"},{"$f":"G24*D24","v":{"v":200,"d":"200.00 "}},{"$nulls":3},0]
[null,"Motoculteur","Jour",4,null,null,{"v":15,"d":"15.00"},{"v":60,"d":"60.00 "},{"$nulls":3},0]
[{"$nulls":7},0,{"$nulls":3},0]
[{"$nulls":7},0,{"$nulls":3},0]
[{"$nulls":7},0,{"$nulls":3},0]
[{"$nulls":7},0,{"$nulls":3},0]
[4,"Sous-Traitance identifiée"]
[{"$nulls":8},{"$f":"F31*D31","v":0},null,null,0]
[{"$nulls":8},{"$f":"F32*D32","v":0},null,null,0]
[{"$nulls":8},{"$f":"F33*D33","v":0},null,null,0]
[{"$nulls":6},"COÛTS DIRECTS",{"$f":"SUM(H11:H33)","v":{"v":2991.4,"d":"2,991.40 "}},{"$f":"SUM(I31:I33)","v":0},null,null,{"$f":"SUM(L11:L33)","v":0}]
["N.B.","En cas de plantation, application d'un pourcentage de garantie de reprise sur les postes 1, 2 et 3"]
[]
[null,"TOTAL TRAVAUX PROPRES","Coûts indirects/CA (%) (1)",null,{"v":0.25,"d":"25%"},"Marge brute/CA (%) (1+2)",{"$f":"E37+E38","v":{"v":0.35,"d":"35%"}},{"$f":"H34*G37","v":{"v":1046.99,"d":"1,046.99 "}}]
[null,null,"Bénéfice/CA (%) (2)",null,{"v":0.1,"d":"10%"},"Coefficient de marge brute /Coûts directs (K)",{"$f":"100/(100-G37*100)","v":{"v":1.5384615384615385,"d":"1.54"}},{"$f":"H34*G38","v":{"v":4602.153846153847,"d":"4,602.15 "}}]
[]
[{"$nulls":5},"TOTAL TRAVAUX SOUS TRAITES IDENTIFIES","Bénéfice/coûts directs (%)",{"v":0.2,"d":"20%"},{"$f":"I34*H40","v":0}]
[{"$nulls":6},"Coefficient ",{"$f":"100/(100-H40*100)","v":1.25},{"$f":"I34*H41","v":0}]
[]
["OBSERVATIONS",{"$nulls":5},"PRIX DE VENTE  HT",{"$f":"I41+H38","v":{"v":4602.153846153847,"d":"4,602.15 €"}}]
[]
[{"$nulls":6},"PRIX UNITAIRE DE VENTE HT",{"$f":"H43/H5","v":{"v":23.010769230769235,"d":"23.01 €"}},null,"par",{"$f":"IF($F$5<>0,$F$5,\"\")","v":"m²"}]
{"$rows_empty":9}
["Rendement journalier * : par homme ou par équipe pour une journée"]
["Total Travaux propres ** : Affectés à l'entreprise"]